{"text_format":"1","workbook":"xlsx","n_sheets":7,"sheets":["Лист1","Калькулятор ануїтет","Додаток 21 \"Форма інформування\"","Продукты","Калькулятор Сайт","Лист2","Лист3"],"not_rendered":{"charts":0,"images":0,"macros":1,"external_links":0,"defined_names":2,"comments":0,"pivot_tables":0},"unopened":[],"bounds":{"document_bytes":16777216,"sheet_cells":100000,"rows_first":2000,"rows_last":500,"rows_between":2000,"halvings":0,"cell_chars":16384,"cell_head_chars":4096},"cells_cut":0,"cells_raw":0,"read":"whole","date_system":"1900"}

{"sheet":"Лист1","index":0,"n_rows":71,"n_cols":7,"rows_kept":71,"cut":false,"hidden":true,"merged":[[69,0,69,6],[62,0,62,1],[62,3,62,5],[70,0,70,6],[63,2,63,5],[64,0,64,6],[65,0,65,6],[66,0,66,1],[66,3,66,5],[67,2,67,5],[68,0,68,1],[57,0,57,6],[58,0,58,6],[59,0,59,6],[61,0,61,6],[56,0,56,6],[45,2,45,6],[46,2,46,6],[47,2,47,6],[48,2,48,6],[49,2,49,6],[44,2,44,6],[32,0,32,1],[33,0,33,1],[35,0,35,1],[36,2,36,6],[37,2,37,6],[38,2,38,6],[39,2,39,6],[40,2,40,6],[41,2,41,6],[50,2,50,6],[52,2,52,6],[53,2,53,6],[54,2,54,6],[55,2,55,6],[51,2,51,6],[19,0,20,1],[19,2,19,3],[20,2,20,3],[21,0,21,3],[23,0,23,5],[25,6,26,6],[42,2,42,6],[43,2,43,6],[29,0,29,2],[29,4,30,6],[30,0,30,2],[31,0,31,1],[24,1,26,1],[24,2,24,3],[25,2,26,2],[25,3,26,3],[25,4,26,4],[24,4,24,6],[0,0,0,1],[1,0,1,1],[2,0,2,1],[14,0,16,5],[18,0,18,1],[18,2,18,3]]}
["Публічне акціонерне товариство \"ТАСКОМБанк\"  "]
["Україна, 01032, м. Київ, вул. С. Петлюри, 30,"]
["безкоштовний телефон: 0 (800) 503 580"]
[null,"Інформація (довідка) про кредит _____________________________:"]
[null,"Розмір кредиту:"]
[null,"Вартість товару (послуги):",null,"грн."]
[null,"Сума на поточні потреби",null,"грн."]
[null,"Сума авансу:",null,"грн."]
[null,"Страховий платiж:",null,"грн."]
[null,"Пенсійний внесок:",null,"грн."]
[null,"Плата за надання кредиту:",null,"грн."]
[null,"Сума договору:",null,"грн."]
[null,"Страхова сума:",null,"грн."]
[]
["Розмір кредиту визначається, як сума вартості товару (послуги) та сума на поточні потреби (за наявності) за мінусом авансового внеску клієнта, а також за рахунок кредиту сплачується страховий платіж  та/або пенсійний внесок та/або плата за надання кредиту. Сума договору і є розміром кредиту, який надається клієнту. Страхова сума це сума, яка є базою для розрахунку страхового платежу. Страхування та сплата пенсійного внеску є окремою послугою, що може надаватись за бажанням клієнта, у тому числі за рахунок кредитних коштів."]
[]
[]
[]
["Internet-banking ТАС 24",null,"-             Сплачуйте за кредитом через Інтернет, а також"]
["https://tas24.ua",null,"-             Поповнюйте депозити"]
[null,null,"-             Здійснюйте платежі"]
["Реєстрація та надання послуг безкоштовні. Детальніше на сайті системи https://tas24.ua"]
[]
["                     Таблиця орієнтовних щомісячних платежів та подорожчання*:"]
["Строк кредиту","Щомісячний платеж, грн","Орієнтовна сукупна вартість кредиту,всього:",null,"в тому числi"]
["(місяців)",null,"у %","у грн.","Сума плати за надання кредиту, грн.","Сума плати за користування кредитом","Сума плати за обслуговування кредитної заборгованості, грн."]
[null,null,null,null,null,"(процентів), грн."]
[]
[]
["Переваги кредитування в рамках даного кредитного продукту:",null,null,null,"Вадами кредитування в рамках даного кредитного продукту є подорожчання товару/послуги"]
["·Оптимізація власного бюджету, за рахунок стабільних платежів"]
["·Моментальне отримання товару"]
["·Низька відсоткова ставка"]
["·Зменшення переплати при достроковому погашенні."]
[]
["Умови кредитування:"]
[null,"Назва кредитного продукту:"]
[null,"Валюта кредиту:","Гривня"]
[null,"Форма кредиту:","Споживчий кредит"]
[null,"Мета кредиту:","Кредит надається: \nбезготівково на оплату товарів чи послуг та оплату супутніх послуг, які пов’язані з отриманням, обслуговуванням і погашенням кредиту, \nна власні потреби готівкою або шляхом перерахування на поточний рахунок позичальника. "]
[null,"Тип процентної ставки","Фіксована/Плаваюча"]
[null,"Плата за користування кредитом (проценти):","______% річних.  \nперші «X» місяців процентна ставка встановлюється на рівні «R»% річних; починаючи з «X1»го місяця користування кредитом процентна ставка встановлюється на рівні «R1»% річних; починаючи з «X2»го місяця користування кредитом процентна ставка встановлюється на рівні «R2»% річних\" \nБанк має право змінювати процентну ставку за кредитом в разі настання події, незалежної від волі сторін Кредитного договору, яка має безпосередній вплив на вартість кредитних ресурсів Банку. В усіх інших випадках процента ставка та вартість супутніх послуг за кредитом змінюється за погодженням між сторонами Кредитного договору згідно з умовами, передбаченими у такому Кредитному договорі."]
[null,"Страховий тариф:","_______ %/ _____ грн. "]
[null,"Cтроки кредитування:","від <Computed Value> до <Computed Value> місяців"]
[null,"Cуми кредитування:","від <Computed Value> до <Computed Value> грн."]
[]
[null,"Форма забезпечення:","Застава товару/інше забезпечення (порука)/кошти на власних рахунках/без забезпечення. Оцінка заставного майна не проводиться"]
[null,"Варіанти повернення (погашення) кредиту:","від <Computed Value> до <Computed Value> місяців"]
[null,"Форма (варіанти) погашення кредиту:","Щомісячно рівними (ануїтетними) платежами.\nАнуїтетні платежі  -  регулярні рівні щомісячні платежі, що направляються на погашення кредиту, а саме основного боргу і процентів, що розраховуються таким чином, що в кінці терміну Кредитного договору за умови виконання зобов'язання Позичальником заборгованість повністю погашається.\nКількість платежів, їх частота та обсяги зазначаються у Графіку платежів згідно Кредитного договору, який в обов’язковому порядку надається для ознайомлення споживачу (позичальнику) до укладання ним Кредитного договору.    \nДаним кредитним продуктом не передбачено інших форм кредитування."]
[null,"Дострокове погашення:","Можливе часткове або повне дострокове погашення кредиту на умовах відсутності штрафних санкцій за вчинення таких дій позичальником"]
[null,"Остаточне погашення:","В кінці строку, вказаного в Кредитному договорі"]
[null,"Податковий режим сплати процентів та державні субсидії","По даному кредитному продукту податкові знижки відсутні, державні субсидії не передбачені"]
[null,"Супутні послуги:"]
[null,"Плата за обслуговування кредитної заборгованості:","_______ щомісячно від суми кредиту\nДана комісія розраховується як процент від суми кредиту, сплачується щомісячно у гривнях у складі ануїтетних платежів. Дана послуга включає в себе розрахунок та надання Позичальнику інформації про стан його заборгованості по кредиту (у вигляді sms-повідомлень, телефонного інформування), інформування про виникнення простроченої заборгованості, формування та надання виписок по рахунку, на якому обліковується кредитна заборгованість, надання консультацій щодо умов строкового та/або дострокового погашення кредитної заборгованості, у тому числі щодо умов дострокового погашення кредитної заборгованості  за декілька періодів, щодо каналів та строків погашення існуючої кредитної заборгованості, зміни умов погашення кредитної заборгованості, встановлення «кредитних канікул», відміни/перегляду розміру штрафних санкцій тощо.\n"]
[null,"Плата за надання кредиту:","___ грн./одноразова комісія, що складає <Computed Value> від суми наданого кредиту. \nДана послуга включає в себе надання послуг з підбору кредитного продукту та умов кредитування, роз’яснення умов кредитування, прийом та аналіз документів, необхідних для оформлення кредиту, консультування щодо умов, каналів, строків погашення кредитної заборгованості, можливості зміни умов погашення кредитної заборгованості тощо."]
[]
["Обов'язкові документи:"]
["1. Паспорт громадянина України"]
["2. Довідка про присвоєння ідентифікаційного номера платника податків (картка платника податків)"]
["В окремих випадках Банк залишає за собою право вимагати інші документи, необхідні для визначення платоспроможності позичальника та які є необхідними для надання споживчого кредиту. "]
[]
["З підписанням цієї Інформації (довідки) про кредит позичальник засвідчує, що перед укладанням Кредитного договору він ознайомлений з інформацією про  умови кредитування, а також повідомлений про орієнтовну сукупну вартість кредиту і ці умови є зрозумілими."]
["_________________________________",null,null,"______________________"]
[null,"Позичальник","Уповноважена особа ПАТ \"ТАСКОМБанк\""]
["Ця Інформація (довідка) про кредит у разі укладання Кредитного договору №____________________ від______________20___р.** вважається (і) його невід’ємною частиною та (іі) детальним розписом сукупної вартості кредиту з урахуванням процентної ставки за ним, вартості супутніх послуг, а також інших фінансових зобов’язань споживача у розумінні"]
["п.3.1. та 3.4. Постанови Правління Національного банку України від 10.05.07р. №168 «Про затвердження Правил надання банками України інформації споживачу про умови кредитування та сукупну вартість кредиту»."]
["_________________________________",null,null,"______________________"]
[null,"Позичальник","Уповноважена особа ПАТ \"ТАСКОМБанк\""]
["_ _ _ _ _ _ _ _ _ _ _ _ _ _ _"]
["*Таблиця орієнтованих щомісячних платежів та подорожчання відображає суму щомісячного погашення кредиту в залежності від вибраного Вами строку кредитування. Таблиця НЕ Є графіком погашення. Графік погашення та чітка сума щомісячного платежу зазначені у Кредитному договорі."]
["**У разі фактичного укладання Кредитного договору його номер та дата вписується уповноваженою особою ПАТ \"ТАСКОМБанк\", на підтвердження чого Позичальник та уповноважена особа ПАТ \"ТАСКОМБанк\" ставлять нижче свої підписи. "]

{"sheet":"Калькулятор ануїтет","index":1,"n_rows":157,"n_cols":34,"rows_kept":157,"cut":false,"hidden":false,"merged":[[1,1,1,4],[156,0,156,18],[24,0,28,0],[24,2,28,2],[25,4,28,4],[25,5,28,5],[25,6,25,16],[26,10,27,11],[26,6,27,9],[23,0,23,14],[3,8,3,9],[4,8,4,9],[5,8,5,9],[6,8,6,9],[10,5,10,9],[9,1,9,9],[0,0,0,18],[1,6,1,8],[24,1,28,1],[24,3,28,3],[24,4,24,16],[3,1,3,3],[5,1,5,3],[8,1,8,3],[4,1,4,3],[19,5,19,9],[9,16,14,18],[24,17,28,17],[24,18,28,18],[23,15,23,18],[26,12,27,15],[13,5,13,9],[18,4,18,9],[14,5,14,9],[17,5,17,9],[16,5,16,9],[12,5,12,9]]}
[]
[null,"Кредит фізичній особі для придбання об’єктів нерухомості, які перебувають у категорії необоротних активів на балансі  Банку",null,null,null,"кредит","Ануїтетна схема",null,null,null,null,null,null,null,null,null,"Ануїтетна схема"]
[null,"Умови:",null,null,null,null,null,null,null,null,null,null,null,null,null,null,"Класична схема",null,null,null,null,null,null,null,null,null,null,null,null,null,null,null,null,"ЧП \"Актив Плюс\""]
[null,"Дата надання кредиту:",null,null,"2024-06-20",null,null,null,"Вартість майна",null,null,null,null,null,13000000,"грн.",null,null,null,null,null,null,null,null,null,null,null,null,null,null,null,null,"Кредит «Вперед к мечте»","ВАТ \"АКО-Експерт\""]
[null,"Сума фінансування: ",null,null,10000000,"гривень",null,null,"Сума кредиту",null,null,null,null,null,{"$f":"E5","v":10000000},"грн.",{"$f":"O5/O4","v":0.76923076923076927},null,null,null,null,null,null,null,null,null,null,null,null,null,null,null,"Кредит на покупку недвижимости","ПП \"Вітал-Профі\""]
[null,"Термін користування кредитом:",null,null,24,"міс",null,null,"Внесок клієнта",null,null,null,null,null,{"$f":"O4-O5","v":3000000},"грн.",{"$f":"O6/O4","v":0.23076923076923078},null,null,null,null,null,null,null,null,null,null,null,null,null,null,null,"Кредит под залог недвижимости","ВАТ \"Кредитне Брокерське Агенство\""]
[null,null,null,null,null,null,null,null,null,null,null,null,null,null,{"$f":"O4","v":13000000},"грн.",null,null,null,null,null,null,null,null,null,null,null,null,null,null,null,null,"Кредит на навчання","ВАТ \"Вектор оцінки\""]
[null,null,null,null,null,null,null,null,null,null,null,null,null,null,null,null,null,null,null,null,null,null,null,null,null,null,null,null,null,null,null,null,"Кредит под депозит","Внутрішній оцінювач Банку"]
[null,"Номінальна процентна ставка: ",null,null,0.16,"річних",null,null,null,null,null,null,null,null,null,null,null,null,null,null,null,null,null,null,null,null,null,null,null,null,null,null,"Кредит на купівлю автомобіля, що був у використанні"]
[null,"Додаткові та/або супутні послуги:",null,null,null,null,null,null,null,null,null,null,null,null,null,null,"Дані, відображені червоним необхідно заповнити",null,null,null,null,null,null,null,null,null,null,null,null,null,null,null,"Овердрафт для держателей зарплатных карт"]
[null,"комісія за надання кредиту: ",null,null,0,"від основної суми фінансування;",null,null,null,null,null,null,null,null,{"$f":"E11*E5","v":0},null,null,null,null,null,null,null,null,null,null,null,null,null,null,null,null,null,"Кредитная карта VIP"]
[null,"обслуговування кредитної заборгованості: ",null,null,0,"на місяць від основної суми фінансування;",null,null,null,null,null,null,null,null,{"$f":"E12*E5","v":0},null,null,null,null,null,null,null,null,null,null,null,null,null,null,null,null,null,"Овердрафт GOLD"]
[null,"розрахунково-касове обслуговування:  ",null,null,0,"від основної суми фінансування;",null,null,null,null,null,null,null,null,{"$f":"$E$13*$O$5","v":0},null,null,null,null,null,null,null,null,null,null,null,null,null,null,null,null,null,"Кеш-кредит \"Зручна готівка\" із послугою страхування"]
[null,"інші послуги банку:",null,null,0,"від основної суми фінансування;",null,null,null,null,null,null,null,null,{"$f":"E14*E5","v":0}]
[null,"страхування:",null,null,0,"на рік від основної суми фінансування (життя);",null,null,null,null,null,null,null,null,{"$f":"E15*E5","v":0},null,null,null,null,null,null,null,null,null,null,null,null,null,null,null,null,null,"Кеш-кредит \"Зручна готівка\" без послуги страхування"]
[null,null,null,null,3.0000000000000001E-3,"на рік від оціночної вартості майна (страхування майна);",null,null,null,null,null,null,null,null,{"$f":"E16*O4","v":39000},null,null,null,null,null,null,null,null,null,null,null,null,null,null,null,null,null,"Лізинг нерухомості"]
[null,"послуги посередника:",null,null,0,"сума, грн (одноразово);",null,null,null,null,null,null,null,null,null,null,null,null,null,null,null,null,null,null,null,null,null,null,null,null,null,null,"Кредит \"Легкий\""]
[null,"послуги нотаріуса: ",null,null,12500,"сума, грн (одноразово);",null,null,null,null,null,null,null,null,null,null,null,null,null,null,null,null,null,null,null,null,null,null,null,null,null,null,"Кредит \"Автосалон\""]
[null,"Найменування оцінника:"]
[null,"вартість послуг оцінника:",null,null,3000,"сума, грн (одноразово).",null,null,null,null,null,null,null,null,null,null,null,null,null,null,null,null,null,null,null,null,null,null,null,null,null,null,"кредит"]
[null,"Інші послуги третіх осіб:"]
[null,"збір на обов'язкове державне пенсійне страхування",null,null,{"$f":"O4*1%","v":130000},"сума, грн (одноразово);"]
[null,"адміністративні збори",null,null,300,"сума, грн (одноразово)"]
["Таблиця обчислення загальної вартості кредиту для споживача та реальної річної процентної ставки за договором про споживчий кредит ",null,null,null,null,null,null,null,null,null,null,null,null,null,null,{"$f":"G2","v":"Ануїтетна схема"},null,null,null,null,null,null,null,null,null,null,null,null,null,null,null,null,"кредитна лінія"]
["№ з/п","Дата видачі кредиту/дата платежу","Кількість днів у розрахунковому періоді","Чиста сума кредиту/сума платежу за розрахунковий період,грн","Види платежів за кредитом",null,null,null,null,null,null,null,null,null,null,null,null,"Реальна річна процентна ставка, %","Загальна вартість кредиту, грн.",null,null,null,null,null,null,null,null,null,null,null,null,null,"овердрафт"]
[null,null,null,null,"Сума кредиту за договором","Поценти за користування кредитом","платежі за додаткові та/або супутні послуги",null,null,null,null,null,null,null,null,null,null,null,null,null,null,null,null,null,null,null,null,null,null,null,null,null,"лізинг"]
[null,null,null,null,null,null,"банку",null,null,null,"кредитного посередника (за наявності)",null,"третіх осіб"]
[]
[null,null,null,null,null,null,"за обслуговування кредитної заборгова ності","розрахунково-касове обслугову -вання","комісія за надання кредиту","інші послуги банку","комісійний збір","інша плата за послуги кредитного посередника","послуги нотаріуса","послуги оцінювача","послуги страховика","інші послуги третіх осіб (збір на обов'язкове держ. пенс. страхув. + адміністрат. збори) "]
[1,2,3,4,5,6,"7","8","9","10","11","12","13","14","15","16","6.3",17,18]
[null,{"$f":"E4","v":"2024-06-20"},"х",{"$f":"E31+SUM(G31:P31)","v":-9818200},{"$f":"E5*(-1)","v":-10000000},null,null,{"$f":"O13","v":0},{"$f":"E5*E11","v":0},{"$f":"O14","v":0},{"$f":"E17","v":0},null,{"$f":"E18","v":12500},null,{"$f":"$O$16+E5*$E$15","v":39000},{"$f":"E23+E22","v":130300},null,"х","х"]
[1,{"$f":"DATE(YEAR(B31),MONTH(B31)+1,DAY(B31))","v":"2024-07-20"},{"$f":"B32-B31","v":30},{"$f":"SUM(E32:Q32)","v":489631.10517610051},{"$f":"IF(A32>$E$6,0,PPMT($E$9/12,A32,$E$6,$E$31))","v":356297.77184276719},{"$f":"IF(A32>$E$6,0,IPMT($E$9/12,A32,$E$6,$E$31))","v":133333.33333333334},{"$f":"IF(A32>$E$6,0,$E$5*$E$12)","v":0},null,null,null,null,null,null,{"$f":"IF(A32=$E$6,\"\",IF(AND(U32>1,V32=0),$E$20,\" \"))","v":" "},{"$f":"IF(A32=$E$6,\"\",IF(AND(U32>1,V32=0),$O$16+U32*$E$15,\" \"))","v":" "},null,null,"х","х",null,{"$f":"E5","v":10000000},{"$f":"MOD(A32,12)","v":1}]
[2,{"$f":"DATE(YEAR(B32),MONTH(B32)+1,DAY(B32))","v":"2024-08-20"},{"$f":"B33-B32","v":31},{"$f":"SUM(E33:Q33)","v":489631.10517610051},{"$f":"IF(A33>$E$6,0,PPMT($E$9/12,A33,$E$6,$E$31))","v":361048.4088006707},{"$f":"IF(A33>$E$6,0,IPMT($E$9/12,A33,$E$6,$E$31))","v":128582.69637542979},0,null,null,null,null,null,null,{"$f":"IF(A33=$E$6,\"\",IF(AND(U33>1,V33=0),$E$20,\" \"))","v":" "},{"$f":"IF(A33=$E$6,\"\",IF(AND(U33>1,V33=0),$O$16+U33*$E$15,\" \"))","v":" "},null,null,"х","х",null,{"$f":"U32-E32","v":9643702.2281572334},2]
[3,"2024-09-20",31,489631.10517610051,365862.38758467964,123768.71759142085,0,null,null,null,null,null,null," "," ",null,null,"х","х",null,9282653.8193565626,3]
[4,"2024-10-20",30,489631.10517610045,370740.55275247537,118890.55242362509,0,null,null,null,null,null,null," "," ",null,null,"х","х",null,8916791.4317718837,4]
[5,"2024-11-20",31,489631.10517610051,375683.76012250839,113947.34505359211,0,null,null,null,null,null,null," "," ",null,null,"х","х",null,8546050.8790194076,5]
[6,"2024-12-20",30,489631.10517610051,380692.87692414183,108938.22825195867,{"$f":"IF(A37>$E$6,0,$E$5*$E$12)","v":0},null,null,null,null,null,null," "," ",null,null,"х","х",null,8170367.1188968988,6]
[7,"2025-01-20",31,489631.10517610051,385768.78194979706,103862.32322630344,0,null,null,null,null,null,null," "," ",null,null,"х","х",null,7789674.2419727566,7]
[8,"2025-02-20",31,489631.10517610051,390912.36570912768,98718.739466972795,0,null,null,null,null,null,null," "," ",null,null,"х","х",null,7403905.4600229599,8]
[9,"2025-03-20",28,489631.10517610051,396124.53058524936,93506.574590851116,0,null,null,null,null,null,null," "," ",null,null,"х","х",null,7012993.094313832,9]
[10,"2025-04-20",31,489631.10517610045,401406.19099305267,88224.914183047775,0,null,null,null,null,null,null," "," ",null,null,"х","х",null,6616868.563728583,10]
[11,"2025-05-20",30,489631.10517610051,406758.2735396268,82872.83163647374,0,null,null,null,null,null,null," "," ",null,null,"х","х",null,6215462.3727355301,11]
[12,"2025-06-20",31,{"$f":"SUM(E43:Q43)","v":531631.10517610051},412181.71718682174,77449.387989278708,0,null,null,null,null,null,null,3000,39000,null,null,"х","х",null,5808704.0991959032,0]
[13,"2025-07-20",30,489631.10517610045,417677.47341597936,71953.63176012109,0,null,null,null,null,null,null," "," ",null,null,"х","х",null,5396522.3820090815,1]
[14,"2025-08-20",31,489631.10517610039,423246.50639485905,66384.598781241366,0,null,null,null,null,null,null," "," ",null,null,"х","х",null,4978844.9085931024,2]
[15,"2025-09-20",31,489631.10517610045,428889.79314679053,60741.312029309898,0,null,null,null,null,null,null," "," ",null,null,"х","х",null,4555598.402198243,3]
[16,"2025-10-20",30,489631.10517610045,434608.32372208108,55022.781454019372,0,null,null,null,null,null,null," "," ",null,null,"х","х",null,4126708.6090514525,4]
[17,"2025-11-20",31,489631.10517610045,440403.10137170885,49228.003804391621,0,null,null,null,null,null,null," "," ",null,null,"х","х",null,3692100.2853293712,5]
[18,"2025-12-20",30,489631.10517610045,446275.14272333164,43355.962452768828,0,null,null,null,null,null,null," "," ",null,null,"х","х",null,3251697.1839576624,6]
[19,"2026-01-20",31,489631.10517610045,452225.47795964271,37405.627216457746,0,null,null,null,null,null,null," "," ",null,null,"х","х",null,2805422.0412343307,7]
[20,"2026-02-20",31,489631.10517610045,458255.1509991046,31375.954176995841,0,null,null,null,null,null,null," "," ",null,null,"х","х",null,2353196.5632746881,8]
[21,"2026-03-20",28,489631.10517610051,464365.2196790927,25265.885497007781,0,null,null,null,null,null,null," "," ",null,null,"х","х",null,1894941.4122755835,9]
[22,"2026-04-20",31,489631.10517610039,470556.75594148051,19074.349234619873,0,null,null,null,null,null,null," "," ",null,null,"х","х",null,1430576.1925964907,10]
[23,"2026-05-20",30,489631.10517610045,476830.84602070029,12800.259155400136,0,null,null,null,null,null,null," "," ",null,null,"х","х",null,960019.43665501021,11]
[24,"2026-06-20",31,489631.10517610051,483188.59063430969,6442.5145417907961,0,null,null,null,null,null,null,"","",null,null,"х","х",null,483188.59063430992,0]
[25,"2026-07-20",30,0,0,0,0,null,null,null,null,null,null," "," ",null,null,"х","х",null,0,1]
[26,"2026-08-20",31,0,0,0,0,null,null,null,null,null,null," "," ",null,null,"х","х",null,0,2]
[27,"2026-09-20",31,0,0,0,0,null,null,null,null,null,null," "," ",null,null,"х","х",null,0,3]
[28,"2026-10-20",30,0,0,0,0,null,null,null,null,null,null," "," ",null,null,"х","х",null,0,4]
[29,"2026-11-20",31,0,0,0,0,null,null,null,null,null,null," "," ",null,null,"х","х",null,0,5]
[30,"2026-12-20",30,0,0,0,0,null,null,null,null,null,null," "," ",null,null,"х","х",null,0,6]
[31,"2027-01-20",31,0,0,0,0,null,null,null,null,null,null," "," ",null,null,"х","х",null,0,7]
[32,"2027-02-20",31,0,0,0,0,null,null,null,null,null,null," "," ",null,null,"х","х",null,0,8]
[33,"2027-03-20",28,{"$f":"SUM(E64:Q64)","v":0},0,0,{"$f":"IF(A64>$E$6,0,$E$5*$E$12)","v":0},null,null,null,null,null,null," "," ",null,null,"х","х",null,0,{"$f":"MOD(A64,12)","v":9}]
[34,"2027-04-20",31,0,0,0,0,null,null,null,null,null,null," "," ",null,null,"х","х",null,{"$f":"U64-E64","v":0},10]
[35,"2027-05-20",30,0,0,0,0,null,null,null,null,null,null," "," ",null,null,"х","х",null,0,11]
[36,"2027-06-20",31,0,0,0,0,null,null,null,null,null,null," "," ",null,null,"х","х",null,0,0]
[37,"2027-07-20",30,0,0,0,0,null,null,null,null,null,null," "," ",null,null,"х","х",null,0,1]
[38,"2027-08-20",31,0,0,0,0,null,null,null,null,null,null," "," ",null,null,"х","х",null,0,2]
[39,"2027-09-20",31,0,0,0,0,null,null,null,null,null,null," "," ",null,null,"х","х",null,0,3]
[40,"2027-10-20",30,0,0,0,0,null,null,null,null,null,null," "," ",null,null,"х","х",null,0,4]
[41,"2027-11-20",31,0,0,0,0,null,null,null,null,null,null," "," ",null,null,"х","х",null,0,5]
[42,"2027-12-20",30,0,0,0,0,null,null,null,null,null,null," "," ",null,null,"х","х",null,0,6]
[43,"2028-01-20",31,0,0,0,0,null,null,null,null,null,null," "," ",null,null,"х","х",null,0,7]
[44,"2028-02-20",31,0,0,0,0,null,null,null,null,null,null," "," ",null,null,"х","х",null,0,8]
[45,"2028-03-20",29,0,0,0,0,null,null,null,null,null,null," "," ",null,null,"х","х",null,0,9]
[46,"2028-04-20",31,0,0,0,0,null,null,null,null,null,null," "," ",null,null,"х","х",null,0,10]
[47,"2028-05-20",30,0,0,0,0,null,null,null,null,null,null," "," ",null,null,"х","х",null,0,11]
[48,"2028-06-20",31,0,0,0,0,null,null,null,null,null,null," "," ",null,null,"х","х",null,0,0]
[49,"2028-07-20",30,0,0,0,0,null,null,null,null,null,null," "," ",null,null,"х","х",null,0,1]
[50,"2028-08-20",31,0,0,0,0,null,null,null,null,null,null," "," ",null,null,"х","х",null,0,2]
[51,"2028-09-20",31,0,0,0,0,null,null,null,null,null,null," "," ",null,null,"х","х",null,0,3]
[52,"2028-10-20",30,0,0,0,0,null,null,null,null,null,null," "," ",null,null,"х","х",null,0,4]
[53,"2028-11-20",31,0,0,0,0,null,null,null,null,null,null," "," ",null,null,"х","х",null,0,5]
[54,"2028-12-20",30,0,0,0,0,null,null,null,null,null,null," "," ",null,null,"х","х",null,0,6]
[55,"2029-01-20",31,0,0,0,0,null,null,null,null,null,null," "," ",null,null,"х","х",null,0,7]
[56,"2029-02-20",31,0,0,0,0,null,null,null,null,null,null," "," ",null,null,"х","х",null,0,8]
[57,"2029-03-20",28,0,0,0,0,null,null,null,null,null,null," "," ",null,null,"х","х",null,0,9]
[58,"2029-04-20",31,0,0,0,0,null,null,null,null,null,null," "," ",null,null,"х","х",null,0,10]
[59,"2029-05-20",30,0,0,0,0,null,null,null,null,null,null," "," ",null,null,"х","х",null,0,11]
[60,"2029-06-20",31,0,0,0,0,null,null,null,null,null,null," "," ",null,null,"х","х",null,0,0]
[61,{"$f":"DATE(YEAR(B91),MONTH(B91)+1,1)","v":"2029-07-01"},11,0,{"$f":"IF(A92>$E$6,0,IF($R$2=2,PPMT($E$9/12,A92,$E$6,$E$31),$E$5/$E$6))","v":0},{"$f":"IF(A92>$E$6,0,IF($R$2=2,IPMT($E$9/12,A92,$E$6,$E$31),((($E$5-SUM($E$32:E91))*$E$9/12))))","v":0},0,null,null,null,null,null,null,null," ",null,null,"х","х",null,0,1]
[62,"2029-08-01",31,0,0,{"$f":"IF(A93>$E$6,0,IF($R$2=2,IPMT($E$9/12,A93,$E$6,$E$31),((($E$5-SUM($E$32:E92))*$E$9/12))))","v":0},0,null,null,null,null,null,null,null," ",null,null,"х","х",null,0,2]
[63,"2029-09-01",31,0,0,{"$f":"IF(A94>$E$6,0,IF($R$2=2,IPMT($E$9/12,A94,$E$6,$E$31),((($E$5-SUM($E$32:E93))*$E$9/12))))","v":0},0,null,null,null,null,null,null,null," ",null,null,"х","х",null,0,3]
[64,"2029-10-01",30,0,0,{"$f":"IF(A95>$E$6,0,IF($R$2=2,IPMT($E$9/12,A95,$E$6,$E$31),((($E$5-SUM($E$32:E94))*$E$9/12))))","v":0},0,null,null,null,null,null,null,null," ",null,null,"х","х",null,0,4]
[65,"2029-11-01",31,{"$f":"SUM(E96:Q96)","v":0},{"$f":"IF(A96>$E$6,0,IF($R$2=2,PPMT($E$9/12,A96,$E$6,$E$31),$E$5/$E$6))","v":0},{"$f":"IF(A96>$E$6,0,IF($R$2=2,IPMT($E$9/12,A96,$E$6,$E$31),((($E$5-SUM($E$32:E95))*$E$9/12))))","v":0},{"$f":"IF(A96>$E$6,0,$E$5*$E$12)","v":0},null,null,null,null,null,null,null,{"$f":"IF(A96=$E$6,\"\",IF(AND(U96>1,V96=0),$O$16+U96*$E$15,\" \"))","v":" "},null,null,"х","х",null,0,{"$f":"MOD(A96,12)","v":5}]
[66,{"$f":"DATE(YEAR(B96),MONTH(B96)+1,1)","v":"2029-12-01"},{"$f":"B97-B96","v":30},0,0,{"$f":"IF(A97>$E$6,0,IF($R$2=2,IPMT($E$9/12,A97,$E$6,$E$31),((($E$5-SUM($E$32:E96))*$E$9/12))))","v":0},0,null,null,null,null,null,null,null," ",null,null,"х","х",null,{"$f":"U96-E96","v":0},6]
[67,"2030-01-01",31,0,0,{"$f":"IF(A98>$E$6,0,IF($R$2=2,IPMT($E$9/12,A98,$E$6,$E$31),((($E$5-SUM($E$32:E97))*$E$9/12))))","v":0},0,null,null,null,null,null,null,null," ",null,null,"х","х",null,0,7]
[68,"2030-02-01",31,0,0,{"$f":"IF(A99>$E$6,0,IF($R$2=2,IPMT($E$9/12,A99,$E$6,$E$31),((($E$5-SUM($E$32:E98))*$E$9/12))))","v":0},0,null,null,null,null,null,null,null," ",null,null,"х","х",null,0,8]
[69,"2030-03-01",28,0,0,{"$f":"IF(A100>$E$6,0,IF($R$2=2,IPMT($E$9/12,A100,$E$6,$E$31),((($E$5-SUM($E$32:E99))*$E$9/12))))","v":0},0,null,null,null,null,null,null,null," ",null,null,"х","х",null,0,9]
[70,"2030-04-01",31,0,0,{"$f":"IF(A101>$E$6,0,IF($R$2=2,IPMT($E$9/12,A101,$E$6,$E$31),((($E$5-SUM($E$32:E100))*$E$9/12))))","v":0},0,null,null,null,null,null,null,null," ",null,null,"х","х",null,0,10]
[71,"2030-05-01",30,0,0,{"$f":"IF(A102>$E$6,0,IF($R$2=2,IPMT($E$9/12,A102,$E$6,$E$31),((($E$5-SUM($E$32:E101))*$E$9/12))))","v":0},0,null,null,null,null,null,null,null," ",null,null,"х","х",null,0,11]
[72,"2030-06-01",31,0,0,{"$f":"IF(A103>$E$6,0,IF($R$2=2,IPMT($E$9/12,A103,$E$6,$E$31),((($E$5-SUM($E$32:E102))*$E$9/12))))","v":0},0,null,null,null,null,null,null,null," ",null,null,"х","х",null,0,0]
[73,"2030-07-01",30,0,0,{"$f":"IF(A104>$E$6,0,IF($R$2=2,IPMT($E$9/12,A104,$E$6,$E$31),((($E$5-SUM($E$32:E103))*$E$9/12))))","v":0},0,null,null,null,null,null,null,null," ",null,null,"х","х",null,0,1]
[74,"2030-08-01",31,0,0,{"$f":"IF(A105>$E$6,0,IF($R$2=2,IPMT($E$9/12,A105,$E$6,$E$31),((($E$5-SUM($E$32:E104))*$E$9/12))))","v":0},0,null,null,null,null,null,null,null," ",null,null,"х","х",null,0,2]
[75,"2030-09-01",31,0,0,{"$f":"IF(A106>$E$6,0,IF($R$2=2,IPMT($E$9/12,A106,$E$6,$E$31),((($E$5-SUM($E$32:E105))*$E$9/12))))","v":0},0,null,null,null,null,null,null,null," ",null,null,"х","х",null,0,3]
[76,"2030-10-01",30,0,0,{"$f":"IF(A107>$E$6,0,IF($R$2=2,IPMT($E$9/12,A107,$E$6,$E$31),((($E$5-SUM($E$32:E106))*$E$9/12))))","v":0},0,null,null,null,null,null,null,null," ",null,null,"х","х",null,0,4]
[77,"2030-11-01",31,0,0,{"$f":"IF(A108>$E$6,0,IF($R$2=2,IPMT($E$9/12,A108,$E$6,$E$31),((($E$5-SUM($E$32:E107))*$E$9/12))))","v":0},0,null,null,null,null,null,null,null," ",null,null,"х","х",null,0,5]
[78,"2030-12-01",30,0,0,{"$f":"IF(A109>$E$6,0,IF($R$2=2,IPMT($E$9/12,A109,$E$6,$E$31),((($E$5-SUM($E$32:E108))*$E$9/12))))","v":0},0,null,null,null,null,null,null,null," ",null,null,"х","х",null,0,6]
[79,"2031-01-01",31,0,0,{"$f":"IF(A110>$E$6,0,IF($R$2=2,IPMT($E$9/12,A110,$E$6,$E$31),((($E$5-SUM($E$32:E109))*$E$9/12))))","v":0},0,null,null,null,null,null,null,null," ",null,null,"х","х",null,0,7]
[80,"2031-02-01",31,0,0,{"$f":"IF(A111>$E$6,0,IF($R$2=2,IPMT($E$9/12,A111,$E$6,$E$31),((($E$5-SUM($E$32:E110))*$E$9/12))))","v":0},0,null,null,null,null,null,null,null," ",null,null,"х","х",null,0,8]
[81,"2031-03-01",28,0,0,{"$f":"IF(A112>$E$6,0,IF($R$2=2,IPMT($E$9/12,A112,$E$6,$E$31),((($E$5-SUM($E$32:E111))*$E$9/12))))","v":0},0,null,null,null,null,null,null,null," ",null,null,"х","х",null,0,9]
[82,"2031-04-01",31,0,0,{"$f":"IF(A113>$E$6,0,IF($R$2=2,IPMT($E$9/12,A113,$E$6,$E$31),((($E$5-SUM($E$32:E112))*$E$9/12))))","v":0},0,null,null,null,null,null,null,null," ",null,null,"х","х",null,0,10]
[83,"2031-05-01",30,0,0,{"$f":"IF(A114>$E$6,0,IF($R$2=2,IPMT($E$9/12,A114,$E$6,$E$31),((($E$5-SUM($E$32:E113))*$E$9/12))))","v":0},0,null,null,null,null,null,null,null," ",null,null,"х","х",null,0,11]
[84,"2031-06-01",31,0,0,{"$f":"IF(A115>$E$6,0,IF($R$2=2,IPMT($E$9/12,A115,$E$6,$E$31),((($E$5-SUM($E$32:E114))*$E$9/12))))","v":0},0,null,null,null,null,null,null,null," ",null,null,"х","х",null,0,0]
[85,"2031-07-01",30,0,0,{"$f":"IF(A116>$E$6,0,IF($R$2=2,IPMT($E$9/12,A116,$E$6,$E$31),((($E$5-SUM($E$32:E115))*$E$9/12))))","v":0},0,null,null,null,null,null,null,null," ",null,null,"х","х",null,0,1]
[86,"2031-08-01",31,0,0,{"$f":"IF(A117>$E$6,0,IF($R$2=2,IPMT($E$9/12,A117,$E$6,$E$31),((($E$5-SUM($E$32:E116))*$E$9/12))))","v":0},0,null,null,null,null,null,null,null," ",null,null,"х","х",null,0,2]
[87,"2031-09-01",31,0,0,{"$f":"IF(A118>$E$6,0,IF($R$2=2,IPMT($E$9/12,A118,$E$6,$E$31),((($E$5-SUM($E$32:E117))*$E$9/12))))","v":0},0,null,null,null,null,null,null,null," ",null,null,"х","х",null,0,3]
[88,"2031-10-01",30,0,0,{"$f":"IF(A119>$E$6,0,IF($R$2=2,IPMT($E$9/12,A119,$E$6,$E$31),((($E$5-SUM($E$32:E118))*$E$9/12))))","v":0},0,null,null,null,null,null,null,null," ",null,null,"х","х",null,0,4]
[89,"2031-11-01",31,0,0,{"$f":"IF(A120>$E$6,0,IF($R$2=2,IPMT($E$9/12,A120,$E$6,$E$31),((($E$5-SUM($E$32:E119))*$E$9/12))))","v":0},0,null,null,null,null,null,null,null," ",null,null,"х","х",null,0,5]
[90,"2031-12-01",30,0,0,{"$f":"IF(A121>$E$6,0,IF($R$2=2,IPMT($E$9/12,A121,$E$6,$E$31),((($E$5-SUM($E$32:E120))*$E$9/12))))","v":0},0,null,null,null,null,null,null,null," ",null,null,"х","х",null,0,6]
[91,"2032-01-01",31,0,0,{"$f":"IF(A122>$E$6,0,IF($R$2=2,IPMT($E$9/12,A122,$E$6,$E$31),((($E$5-SUM($E$32:E121))*$E$9/12))))","v":0},0,null,null,null,null,null,null,null," ",null,null,"х","х",null,0,7]
[92,"2032-02-01",31,0,0,{"$f":"IF(A123>$E$6,0,IF($R$2=2,IPMT($E$9/12,A123,$E$6,$E$31),((($E$5-SUM($E$32:E122))*$E$9/12))))","v":0},0,null,null,null,null,null,null,null," ",null,null,"х","х",null,0,8]
[93,"2032-03-01",29,0,0,{"$f":"IF(A124>$E$6,0,IF($R$2=2,IPMT($E$9/12,A124,$E$6,$E$31),((($E$5-SUM($E$32:E123))*$E$9/12))))","v":0},0,null,null,null,null,null,null,null," ",null,null,"х","х",null,0,9]
[94,"2032-04-01",31,0,0,{"$f":"IF(A125>$E$6,0,IF($R$2=2,IPMT($E$9/12,A125,$E$6,$E$31),((($E$5-SUM($E$32:E124))*$E$9/12))))","v":0},0,null,null,null,null,null,null,null," ",null,null,"х","х",null,0,10]
[95,"2032-05-01",30,0,0,{"$f":"IF(A126>$E$6,0,IF($R$2=2,IPMT($E$9/12,A126,$E$6,$E$31),((($E$5-SUM($E$32:E125))*$E$9/12))))","v":0},0,null,null,null,null,null,null,null," ",null,null,"х","х",null,0,11]
[96,"2032-06-01",31,0,0,{"$f":"IF(A127>$E$6,0,IF($R$2=2,IPMT($E$9/12,A127,$E$6,$E$31),((($E$5-SUM($E$32:E126))*$E$9/12))))","v":0},0,null,null,null,null,null,null,null," ",null,null,"х","х",null,0,0]
[97,"2032-07-01",30,{"$f":"SUM(E128:Q128)","v":0},{"$f":"IF(A128>$E$6,0,IF($R$2=2,PPMT($E$9/12,A128,$E$6,$E$31),$E$5/$E$6))","v":0},{"$f":"IF(A128>$E$6,0,IF($R$2=2,IPMT($E$9/12,A128,$E$6,$E$31),((($E$5-SUM($E$32:E127))*$E$9/12))))","v":0},{"$f":"IF(A128>$E$6,0,$E$5*$E$12)","v":0},null,null,null,null,null,null,null," ",null,null,"х","х",null,0,{"$f":"MOD(A128,12)","v":1}]
[98,"2032-08-01",31,0,0,{"$f":"IF(A129>$E$6,0,IF($R$2=2,IPMT($E$9/12,A129,$E$6,$E$31),((($E$5-SUM($E$32:E128))*$E$9/12))))","v":0},0,null,null,null,null,null,null,null," ",null,null,"х","х",null,{"$f":"U128-E128","v":0},2]
[99,"2032-09-01",31,0,0,{"$f":"IF(A130>$E$6,0,IF($R$2=2,IPMT($E$9/12,A130,$E$6,$E$31),((($E$5-SUM($E$32:E129))*$E$9/12))))","v":0},0,null,null,null,null,null,null,null," ",null,null,"х","х",null,0,3]
[100,"2032-10-01",30,0,0,{"$f":"IF(A131>$E$6,0,IF($R$2=2,IPMT($E$9/12,A131,$E$6,$E$31),((($E$5-SUM($E$32:E130))*$E$9/12))))","v":0},0,null,null,null,null,null,null,null," ",null,null,"х","х",null,0,4]
[101,"2032-11-01",31,0,0,{"$f":"IF(A132>$E$6,0,IF($R$2=2,IPMT($E$9/12,A132,$E$6,$E$31),((($E$5-SUM($E$32:E131))*$E$9/12))))","v":0},0,null,null,null,null,null,null,null," ",null,null,"х","х",null,0,5]
[102,"2032-12-01",30,0,0,{"$f":"IF(A133>$E$6,0,IF($R$2=2,IPMT($E$9/12,A133,$E$6,$E$31),((($E$5-SUM($E$32:E132))*$E$9/12))))","v":0},0,null,null,null,null,null,null,null," ",null,null,"х","х",null,0,6]
[103,"2033-01-01",31,0,0,{"$f":"IF(A134>$E$6,0,IF($R$2=2,IPMT($E$9/12,A134,$E$6,$E$31),((($E$5-SUM($E$32:E133))*$E$9/12))))","v":0},0,null,null,null,null,null,null,null," ",null,null,"х","х",null,0,7]
[104,"2033-02-01",31,0,0,{"$f":"IF(A135>$E$6,0,IF($R$2=2,IPMT($E$9/12,A135,$E$6,$E$31),((($E$5-SUM($E$32:E134))*$E$9/12))))","v":0},0,null,null,null,null,null,null,null," ",null,null,"х","х",null,0,8]
[105,"2033-03-01",28,0,0,{"$f":"IF(A136>$E$6,0,IF($R$2=2,IPMT($E$9/12,A136,$E$6,$E$31),((($E$5-SUM($E$32:E135))*$E$9/12))))","v":0},0,null,null,null,null,null,null,null," ",null,null,"х","х",null,0,9]
[106,"2033-04-01",31,0,0,{"$f":"IF(A137>$E$6,0,IF($R$2=2,IPMT($E$9/12,A137,$E$6,$E$31),((($E$5-SUM($E$32:E136))*$E$9/12))))","v":0},0,null,null,null,null,null,null,null," ",null,null,"х","х",null,0,10]
[107,"2033-05-01",30,0,0,{"$f":"IF(A138>$E$6,0,IF($R$2=2,IPMT($E$9/12,A138,$E$6,$E$31),((($E$5-SUM($E$32:E137))*$E$9/12))))","v":0},0,null,null,null,null,null,null,null," ",null,null,"х","х",null,0,11]
[108,"2033-06-01",31,0,0,{"$f":"IF(A139>$E$6,0,IF($R$2=2,IPMT($E$9/12,A139,$E$6,$E$31),((($E$5-SUM($E$32:E138))*$E$9/12))))","v":0},0,null,null,null,null,null,null,null," ",null,null,"х","х",null,0,0]
[109,"2033-07-01",30,0,0,{"$f":"IF(A140>$E$6,0,IF($R$2=2,IPMT($E$9/12,A140,$E$6,$E$31),((($E$5-SUM($E$32:E139))*$E$9/12))))","v":0},0,null,null,null,null,null,null,null," ",null,null,"х","х",null,0,1]
[110,"2033-08-01",31,0,0,{"$f":"IF(A141>$E$6,0,IF($R$2=2,IPMT($E$9/12,A141,$E$6,$E$31),((($E$5-SUM($E$32:E140))*$E$9/12))))","v":0},0,null,null,null,null,null,null,null," ",null,null,"х","х",null,0,2]
[111,"2033-09-01",31,0,0,{"$f":"IF(A142>$E$6,0,IF($R$2=2,IPMT($E$9/12,A142,$E$6,$E$31),((($E$5-SUM($E$32:E141))*$E$9/12))))","v":0},0,null,null,null,null,null,null,null," ",null,null,"х","х",null,0,3]
[112,"2033-10-01",30,0,0,{"$f":"IF(A143>$E$6,0,IF($R$2=2,IPMT($E$9/12,A143,$E$6,$E$31),((($E$5-SUM($E$32:E142))*$E$9/12))))","v":0},0,null,null,null,null,null,null,null," ",null,null,"х","х",null,0,4]
[113,"2033-11-01",31,0,0,{"$f":"IF(A144>$E$6,0,IF($R$2=2,IPMT($E$9/12,A144,$E$6,$E$31),((($E$5-SUM($E$32:E143))*$E$9/12))))","v":0},0,null,null,null,null,null,null,null," ",null,null,"х","х",null,0,5]
[114,"2033-12-01",30,0,0,{"$f":"IF(A145>$E$6,0,IF($R$2=2,IPMT($E$9/12,A145,$E$6,$E$31),((($E$5-SUM($E$32:E144))*$E$9/12))))","v":0},0,null,null,null,null,null,null,null," ",null,null,"х","х",null,0,6]
[115,"2034-01-01",31,0,0,{"$f":"IF(A146>$E$6,0,IF($R$2=2,IPMT($E$9/12,A146,$E$6,$E$31),((($E$5-SUM($E$32:E145))*$E$9/12))))","v":0},0,null,null,null,null,null,null,null," ",null,null,"х","х",null,0,7]
[116,"2034-02-01",31,0,0,{"$f":"IF(A147>$E$6,0,IF($R$2=2,IPMT($E$9/12,A147,$E$6,$E$31),((($E$5-SUM($E$32:E146))*$E$9/12))))","v":0},0,null,null,null,null,null,null,null," ",null,null,"х","х",null,0,8]
[117,"2034-03-01",28,0,0,{"$f":"IF(A148>$E$6,0,IF($R$2=2,IPMT($E$9/12,A148,$E$6,$E$31),((($E$5-SUM($E$32:E147))*$E$9/12))))","v":0},0,null,null,null,null,null,null,null," ",null,null,"х","х",null,0,9]
[118,"2034-04-01",31,0,0,{"$f":"IF(A149>$E$6,0,IF($R$2=2,IPMT($E$9/12,A149,$E$6,$E$31),((($E$5-SUM($E$32:E148))*$E$9/12))))","v":0},0,null,null,null,null,null,null,null," ",null,null,"х","х",null,0,10]
[119,"2034-05-01",30,0,0,{"$f":"IF(A150>$E$6,0,IF($R$2=2,IPMT($E$9/12,A150,$E$6,$E$31),((($E$5-SUM($E$32:E149))*$E$9/12))))","v":0},0,null,null,null,null,null,null,null," ",null,null,"х","х",null,0,11]
[120,"2034-06-01",31,0,0,{"$f":"IF(A151>$E$6,0,IF($R$2=2,IPMT($E$9/12,A151,$E$6,$E$31),((($E$5-SUM($E$32:E150))*$E$9/12))))","v":0},0,null,null,null,null,null,null,null," ",null,null,"х","х",null,0,0]
["Усього",null,null,null,{"$f":"SUM(E32:E151)","v":10000000},1751146.5242264119,0,{"$f":"SUM(H31:H151)","v":0},{"$f":"SUM(I31:I151)","v":0},{"$f":"SUM(J31:J151)","v":0},0,0,12500,3000,78000,130300,{"$f":"SUM(Q31:Q151)","v":0},{"$f":"XIRR(D31:D151,B31:B151)","v":0.19846886992454532},{"$f":"SUM(E152:P152)","v":11974946.524226412}]
[]
[null,"Один екземпляр Інформації про умови кредитування та орієнтовну сукупну вартість кредиту отримав(ла).",null,null,null,null,null,null,"_______________________",null,null,null,null,null,"____________________",null,"________________________"]
[null,null,null,null,null,null,null,null,"дата",null,null,null,null,null,"підпис",null,"ініціали та прізвище фізичної особи"]
[]
["Примітка: \nобчислення  реальної процентної ставки базується на припущенні, що :\n1)договір про споживчий кредит залишається дійсним протягом погодженого строку та що кредитодавець  і споживач виконають свої обов `язки на умовах та у строки, визначені в договорі;\n2) процентна ставка та інші платежі за послуги кредитодавця  залишатимуться незмінними та застосовуватимуться протягом строку дії договору про споживчий кредит."]

{"sheet":"Додаток 21 \"Форма інформування\"","index":2,"n_rows":81,"n_cols":8,"rows_kept":81,"cut":false,"hidden":true,"merged":[[0,0,0,7],[73,1,73,7],[64,1,64,2],[64,4,64,6],[65,3,65,6],[66,1,66,7],[72,1,72,7],[70,1,70,2],[67,1,67,7],[68,1,68,2],[68,4,68,6],[69,3,69,6],[71,1,71,7],[49,3,49,7],[56,3,56,7],[58,1,58,7],[59,1,59,7],[60,1,60,7],[63,1,63,7],[37,3,37,7],[38,3,38,7],[39,3,39,7],[40,3,40,7],[41,3,41,7],[42,3,42,7],[54,3,54,7],[55,3,55,7],[43,3,43,7],[44,3,44,7],[45,3,45,7],[53,3,53,7],[50,3,50,7],[51,3,51,7],[52,3,52,7],[26,4,27,4],[26,7,27,7],[46,3,46,7],[30,1,30,3],[31,1,31,3],[32,1,32,2],[33,1,33,2],[30,5,31,7],[36,1,36,2],[2,1,2,2],[3,1,3,2],[15,1,17,6],[24,1,24,6],[1,1,1,3],[1,5,1,6],[61,1,61,7],[26,5,27,5],[19,1,19,2],[19,3,19,4],[34,1,34,2],[20,3,20,4],[21,3,21,4],[20,1,21,2],[22,1,22,4],[47,3,47,7],[47,2,48,2],[48,3,48,7],[25,2,27,2],[25,3,25,4],[25,5,25,7],[26,3,27,3]]}
["Інформація про умови кредитування та орієнтовну сукупну вартість кредиту"]
[null,"ПУБЛІЧНЕ АКЦІОНЕРНЕ ТОВАРИСТВО \"ТАСКОМБАНК\"  "]
[null,"Україна, 01032, м. Київ, вул. С. Петлюри, 30,"]
[null,"безкоштовний телефон: 0 (800) 503 580"]
[]
[null,null,"Розмір кредиту:"]
[null,null,"Вартість товару (послуги):",{"$f":"'Калькулятор ануїтет'!O4","v":13000000},"грн."]
[null,null,"Сума на поточні потреби",{"$f":"'Калькулятор ануїтет'!O5","v":10000000},"грн."]
[null,null,"Сума авансу:",{"$f":"'Калькулятор ануїтет'!O6","v":3000000},"грн."]
[null,null,"Страховий платiж:",{"$f":"'Калькулятор ануїтет'!O31","v":39000},"грн."]
[null,null,"Оцінка предмету застави",{"$f":"'Калькулятор ануїтет'!E20","v":3000},"грн."]
[null,null,"Послуги нотаріуса",{"$f":"'Калькулятор ануїтет'!E18","v":12500},"грн."]
[null,null,"Плата за надання кредиту:",{"$f":"'Калькулятор ануїтет'!I31*(-1)","v":0},"грн."]
[null,null,"Сума договору:",{"$f":"'Калькулятор ануїтет'!E5","v":10000000},"грн."]
[null,null,"Страхова сума:",{"$f":"'Калькулятор ануїтет'!O7","v":13000000},"грн."]
[null,"Розмір кредиту визначається, як сума вартості товару (послуги) та сума на поточні потреби (за наявності) за мінусом авансового внеску клієнта"]
[]
[]
[]
[null,"Internet-banking ТАС 24",null,"             Сплачуйте кредитну заборгованість через Інтернет, а також"]
[null,"https://tas24.ua",null,"-             Поповнюйте депозити"]
[null,null,null,"-             Здійснюйте платежі"]
[null,"Реєстрація та надання послуг безкоштовні. Детальніше на сайті системи https://tas24.ua"]
[]
[null,"                     Таблиця орієнтовних щомісячних платежів та подорожчання*:"]
[null,"Строк кредиту","Щомісячний платіж, грн","Орієнтовна сукупна вартість кредиту,всього:",null,"в тому числi"]
[null,"(місяців)",null,"у %","у грн.","Сума плати за надання кредиту, грн.","Сума плати за користування кредитом","Сума плати за обслуговування кредитної заборгованості, грн."]
[null,null,null,null,null,null,"(процентів), грн."]
[null,{"$f":"'Калькулятор ануїтет'!E6","v":24},{"$f":"('Калькулятор ануїтет'!D152+'Калькулятор ануїтет'!I152+'Калькулятор ануїтет'!O152+'Калькулятор ануїтет'!P152+'Калькулятор ануїтет'!Q152)/'Додаток 21 \"Форма інформування\"'!B29","v":8679.1666666666661},{"$f":"'Калькулятор ануїтет'!R152","v":0.19846886992454532},{"$f":"'Калькулятор ануїтет'!S152","v":11974946.524226412},{"$f":"D13","v":0},{"$f":"'Калькулятор ануїтет'!F152","v":1751146.5242264119},{"$f":"'Калькулятор ануїтет'!G152+'Калькулятор ануїтет'!#REF!+'Калькулятор ануїтет'!J152+'Калькулятор ануїтет'!O152+'Калькулятор ануїтет'!P152+'Калькулятор ануїтет'!Q152","v":{"$error":"#REF!"}}]
[]
[null,"Переваги кредитування в рамках даного продукту:",null,null,null,"Вадами кредитування в рамках даного  продукту є подорожчання товару/послуги"]
[null,"·Оптимізація власного бюджету, за рахунок стабільних платежів"]
[null,"·Моментальне отримання товару"]
[null,"·Низька відсоткова ставка"]
[null,"·Зменшення переплати при достроковому погашенні."]
[]
[null,"Умови кредитування:"]
[null,null,"Назва кредитного продукту:",{"$f":"'Калькулятор ануїтет'!E2","v":0}]
[null,null,"Валюта кредиту:",{"$f":"IF($D$38=Продукты!$B$2,Продукты!B3,IF($D$38=Продукты!$C$2,Продукты!C3,IF($D$38=Продукты!$D$2,Продукты!D3,IF($D$38=Продукты!$E$2,Продукты!E3,IF($D$38=Продукты!$F$2,Продукты!F3,IF($D$38=Продукты!$G$2,Продукты!G3,IF($D$38=Продукты!$H$2,Продукты!H3,IF($D$38=Продукты!$I$2,Продукты!I3,IF($D$38=Продукты!K2,Продукты!K3,IF($D$38=Продукты!L2,Продукты!L3,Продукты!N3))))))))))","v":"Гривня"}]
[null,null,"Форма кредиту:",{"$f":"IF($D$38=Продукты!$B$2,Продукты!B4,IF($D$38=Продукты!$C$2,Продукты!C4,IF($D$38=Продукты!$D$2,Продукты!D4,IF($D$38=Продукты!$E$2,Продукты!E4,IF($D$38=Продукты!$F$2,Продукты!F4,IF($D$38=Продукты!$G$2,Продукты!G4,IF($D$38=Продукты!$H$2,Продукты!H4,IF($D$38=Продукты!$I$2,Продукты!I4,IF($D$38=Продукты!K2,Продукты!K4,IF($D$38=Продукты!L2,Продукты!L4,Продукты!N4))))))))))","v":"Строковий кредит.\nСтроковий кредит - сума грошових коштів, що одноразово надається позичальнику на принципах безумовного повернення, строковості, платності, цільової спрямованості та забезпеченості.\nВиконання зобов’язання за кредитним договором, а саме повернення кредиту, сплата процентів та щомісячних комісій (в разі наявності) здійснюється таким чином:\n- проценти сплачуються щомісячно;\n- основний борг повертається щомісячно рівними частинами або ануїтетними платежами."}]
[null,null,"Мета кредиту:",{"$f":"IF($D$38=Продукты!$B$2,Продукты!B5,IF($D$38=Продукты!$C$2,Продукты!C5,IF($D$38=Продукты!$D$2,Продукты!D5,IF($D$38=Продукты!$E$2,Продукты!E5,IF($D$38=Продукты!$F$2,Продукты!F5,IF($D$38=Продукты!$G$2,Продукты!G5,IF($D$38=Продукты!$H$2,Продукты!H5,IF($D$38=Продукты!$I$2,Продукты!I5,IF($D$38=Продукты!K2,Продукты!K5,IF($D$38=Продукты!L2,Продукты!L5,Продукты!N5))))))))))","v":"Кредит надається безготівково на оплату товарів чи послуг та оплату супутніх послуг, які пов’язані з отриманням, обслуговуванням і погашенням кредиту."}]
[null,null,"Тип процентної ставки",{"$f":"IF($D$38=Продукты!$B$2,Продукты!B6,IF($D$38=Продукты!$C$2,Продукты!C6,IF($D$38=Продукты!$D$2,Продукты!D6,IF($D$38=Продукты!$E$2,Продукты!E6,IF($D$38=Продукты!$F$2,Продукты!F6,IF($D$38=Продукты!$G$2,Продукты!G6,IF($D$38=Продукты!$H$2,Продукты!H6,IF($D$38=Продукты!$I$2,Продукты!I6,IF($D$38=Продукты!K2,Продукты!K6,IF($D$38=Продукты!L2,Продукты!L6,Продукты!N6))))))))))","v":"Фіксована"}]
[null,null,"Плата за користування кредитом (проценти):",{"$f":"IF($D$38=Продукты!$B$2,Продукты!B7,IF($D$38=Продукты!$C$2,Продукты!C7,IF($D$38=Продукты!$D$2,Продукты!D7,IF($D$38=Продукты!$E$2,Продукты!E7,IF($D$38=Продукты!$F$2,Продукты!F7,IF($D$38=Продукты!$G$2,Продукты!G7,IF($D$38=Продукты!$H$2,Продукты!H7,IF($D$38=Продукты!$I$2,Продукты!I7,IF($D$38=Продукты!K2,Продукты!K7,IF($D$38=Продукты!L2,Продукты!L7,Продукты!N7))))))))))","v":"Від 0,001%"}]
[null,null,"Страховий тариф:",{"$f":"IF($D$38=Продукты!$B$2,Продукты!B8,IF($D$38=Продукты!$C$2,Продукты!C8,IF($D$38=Продукты!$D$2,Продукты!D8,IF($D$38=Продукты!$E$2,Продукты!E8,IF($D$38=Продукты!$F$2,Продукты!F8,IF($D$38=Продукты!$G$2,Продукты!G8,IF($D$38=Продукты!$H$2,Продукты!H8,IF($D$38=Продукты!$I$2,Продукты!I8,IF($D$38=Продукты!K2,Продукты!K8,IF($D$38=Продукты!L2,Продукты!L8,Продукты!N8))))))))))","v":"2,99% - страхування життя, від 6,0% - страхування КАСКО, від 400 грн. - страхування ОСАГО"}]
[null,null,"Cтроки фінансування:",{"$f":"IF($D$38=Продукты!$B$2,Продукты!B9,IF($D$38=Продукты!$C$2,Продукты!C9,IF($D$38=Продукты!$D$2,Продукты!D9,IF($D$38=Продукты!$E$2,Продукты!E9,IF($D$38=Продукты!$F$2,Продукты!F9,IF($D$38=Продукты!$G$2,Продукты!G9,IF($D$38=Продукты!$H$2,Продукты!H9,IF($D$38=Продукты!$I$2,Продукты!I9,IF($D$38=Продукты!K2,Продукты!K9,IF($D$38=Продукты!L2,Продукты!L9,Продукты!N9))))))))))","v":"Від 3 міс. до 84 міс."}]
[null,null,"Cуми кредитування:",{"$f":"IF($D$38=Продукты!$B$2,Продукты!B10,IF($D$38=Продукты!$C$2,Продукты!C10,IF($D$38=Продукты!$D$2,Продукты!D10,IF($D$38=Продукты!$E$2,Продукты!E10,IF($D$38=Продукты!$F$2,Продукты!F10,IF($D$38=Продукты!$G$2,Продукты!G10,IF($D$38=Продукты!$H$2,Продукты!H10,IF($D$38=Продукты!$I$2,Продукты!I10,IF($D$38=Продукты!K2,Продукты!K10,IF($D$38=Продукты!L2,Продукты!L10,Продукты!N10))))))))))","v":"Від 50 тис. до 800 тис. грн."}]
[null,null,"Форма забезпечення:",{"$f":"IF($D$38=Продукты!$B$2,Продукты!B11,IF($D$38=Продукты!$C$2,Продукты!C11,IF($D$38=Продукты!$D$2,Продукты!D11,IF($D$38=Продукты!$E$2,Продукты!E11,IF($D$38=Продукты!$F$2,Продукты!F11,IF($D$38=Продукты!$G$2,Продукты!G11,IF($D$38=Продукты!$H$2,Продукты!H11,IF($D$38=Продукты!$I$2,Продукты!I11,IF($D$38=Продукты!K2,Продукты!K11,IF($D$38=Продукты!L2,Продукты!L11,Продукты!N11))))))))))","v":"Застава автомобіля"}]
[null,null,"Необхідність здійснення оцінки майна",{"$f":"IF($D$38=Продукты!$B$2,Продукты!B12,IF($D$38=Продукты!$C$2,Продукты!C12,IF($D$38=Продукты!$D$2,Продукты!D12,IF($D$38=Продукты!$E$2,Продукты!E12,IF($D$38=Продукты!$F$2,Продукты!F12,IF($D$38=Продукты!$G$2,Продукты!G12,IF($D$38=Продукты!$H$2,Продукты!H12,IF($D$38=Продукты!$I$2,Продукты!I12,IF($D$38=Продукты!K2,Продукты!K12,IF($D$38=Продукты!L2,Продукты!L12,Продукты!N12))))))))))","v":"Необхідність оцінки майна відсутня"}]
[null,null,null,{"$f":"IF(D48=\"Заставна вартість нерухомості встановлюється на підставі проведеної незалежної оцінки незалежним оцінювачем \",'Калькулятор ануїтет'!E19,\" \")","v":" "}]
[null,null,"Варіанти повернення (погашення) кредиту:"]
[null,null,"Форма (варіанти) погашення кредиту:",{"$f":"IF($D$38=Продукты!$B$2,Продукты!B14,IF($D$38=Продукты!$C$2,Продукты!C14,IF($D$38=Продукты!$D$2,Продукты!D14,IF($D$38=Продукты!$E$2,Продукты!E14,IF($D$38=Продукты!$F$2,Продукты!F14,IF($D$38=Продукты!$G$2,Продукты!G14,IF($D$38=Продукты!$H$2,Продукты!H14,IF($D$38=Продукты!$I$2,Продукты!I14,IF($D$38=Продукты!K2,Продукты!K14,IF($D$38=Продукты!L2,Продукты!L14,Продукты!N14))))))))))","v":"Класична форма погашення/щомісячно рівними (ануїтетними) платежами.\nПереваги класичної форми погашення: сума нарахованих процентів зменьшується значно швидше, ніж при ануїтетному платежі.\nНедоліки класичної форми погашення: на початк користування кредитними коштами сума щомісячного платежу буде більшою, ніж при поверненні ануїтетними платежами.\nПереваги ануїтетних платежів: повернення кредиту рівними платежами протягом всього строку кредитування. Зручність для позичальників з незмінною щомісячною сумою доходів. Щомісячний платіж меньший в порівнянні з поверненням кредитних коштів рівними частинами.\nНедоліки ануїтетних платежів: сума нарахованих процентів за весь строк користування кредитними коштами буде більше, ніж при поверненні кредиту рівними частинами."}]
[null,null,"Дострокове погашення:",{"$f":"IF($D$38=Продукты!$B$2,Продукты!B15,IF($D$38=Продукты!$C$2,Продукты!C15,IF($D$38=Продукты!$D$2,Продукты!D15,IF($D$38=Продукты!$E$2,Продукты!E15,IF($D$38=Продукты!$F$2,Продукты!F15,IF($D$38=Продукты!$G$2,Продукты!G15,IF($D$38=Продукты!$H$2,Продукты!H15,IF($D$38=Продукты!$I$2,Продукты!I15,IF($D$38=Продукты!K2,Продукты!K15,IF($D$38=Продукты!L2,Продукты!L15,Продукты!N15))))))))))","v":"Можливе часткове або повне дострокове погашення кредиту на умовах відсутності штрафних санкцій за вчинення таких дій позичальником"}]
[null,null,"Остаточне погашення:",{"$f":"IF($D$38=Продукты!$B$2,Продукты!B16,IF($D$38=Продукты!$C$2,Продукты!C16,IF($D$38=Продукты!$D$2,Продукты!D16,IF($D$38=Продукты!$E$2,Продукты!E16,IF($D$38=Продукты!$F$2,Продукты!F16,IF($D$38=Продукты!$G$2,Продукты!G16,IF($D$38=Продукты!$H$2,Продукты!H16,IF($D$38=Продукты!$I$2,Продукты!I16,IF($D$38=Продукты!K2,Продукты!K16,IF($D$38=Продукты!L2,Продукты!L16,Продукты!N16))))))))))","v":"В кінці строку, вказаного в Кредитному договорі"}]
[null,null,"Податковий режим сплати процентів та державні субсидії",{"$f":"IF($D$38=Продукты!$B$2,Продукты!B17,IF($D$38=Продукты!$C$2,Продукты!C17,IF($D$38=Продукты!$D$2,Продукты!D17,IF($D$38=Продукты!$E$2,Продукты!E17,IF($D$38=Продукты!$F$2,Продукты!F17,IF($D$38=Продукты!$G$2,Продукты!G17,IF($D$38=Продукты!$H$2,Продукты!H17,IF($D$38=Продукты!$I$2,Продукты!I17,IF($D$38=Продукты!K2,Продукты!K17,IF($D$38=Продукты!L2,Продукты!L17,Продукты!N17))))))))))","v":"По даному кредитному продукту податкові знижки відсутні, державні субсидії не передбачені"}]
[null,null,"Супутні послуги:"]
[null,null,"Плата за обслуговування кредитної заборгованості:",{"$f":"IF($D$38=Продукты!$B$2,Продукты!B19,IF($D$38=Продукты!$C$2,Продукты!C19,IF($D$38=Продукты!$D$2,Продукты!D19,IF($D$38=Продукты!$E$2,Продукты!E19,IF($D$38=Продукты!$F$2,Продукты!F19,IF($D$38=Продукты!$G$2,Продукты!G19,IF($D$38=Продукты!$H$2,Продукты!H19,IF($D$38=Продукты!$I$2,Продукты!I19,IF($D$38=Продукты!K2,Продукты!K19,IF($D$38=Продукты!L2,Продукты!L19,Продукты!N19))))))))))","v":"1,4% від суми кредиту"}]
[null,null,"Плата за надання кредиту:",{"$f":"IF($D$38=Продукты!$B$2,Продукты!B20,IF($D$38=Продукты!$C$2,Продукты!C20,IF($D$38=Продукты!$D$2,Продукты!D20,IF($D$38=Продукты!$E$2,Продукты!E20,IF($D$38=Продукты!$F$2,Продукты!F20,IF($D$38=Продукты!$G$2,Продукты!G20,IF($D$38=Продукты!$H$2,Продукты!H20,IF($D$38=Продукты!$I$2,Продукты!I20,IF($D$38=Продукты!K2,Продукты!K20,IF($D$38=Продукты!L2,Продукты!L20,Продукты!N20))))))))))","v":"від 0 до 2% від суми кредиту"}]
[]
[null,"Обов'язкові документи:"]
[null,"1. Паспорт громадянина України"]
[null,"2. Довідка про присвоєння ідентифікаційного номера платника податків (картка платника податків)"]
[null,"В окремих випадках Банк залишає за собою право вимагати інші документи, необхідні для визначення платоспроможності позичальника та які є необхідними для надання споживчого кредиту. "]
[]
[null,"З підписанням цієї Інформації (довідки) про кредит позичальник засвідчує, що перед укладанням Кредитного договору він ознайомлений з інформацією про  умови кредитування, а також повідомлений про орієнтовну сукупну вартість кредиту і ці умови є зрозумілими"]
[null,"_________________________________",null,null,"______________________"]
[null,null,"Позичальник","Уповноважена особа АТ \"ТАСКОМБАНК\""]
[null,"Ця Інформація (довідка) про кредит у разі укладання Кредитного договору №____________________ від______________20___р.** вважається (і) його невід’ємною частиною та (іі) детальним розписом сукупної вартості кредиту з урахуванням процентної ставки за ним, "]
[null,"п.3.1. та 3.4. Постанови Правління Національного банку України від 10.05.07р. №168 «Про затвердження Правил надання банками України інформації споживачу про умови кредитування та сукупну вартість кредиту»."]
[null,"_________________________________",null,null,"______________________"]
[null,null,"Позичальник","Уповноважена особа АТ \"ТАСКОМБАНК\""]
[null,"_ _ _ _ _ _ _ _ _ _ _ _ _ _ _"]
[null,"*Таблиця орієнтованих щомісячних платежів та подорожчання відображає суму щомісячного погашення кредиту в залежності від вибраного Вами строку кредитування. Таблиця НЕ Є графіком погашення. Графік погашення та чітка сума щомісячного платежу зазначені у Кредитному договорі"]
[null,"**У разі фактичного укладання Кредитного договору його номер та дата вписується уповноваженою особою АТ \"ТАСКОМБАНК\", на підтвердження чого Позичальник та уповноважена особа АТ \"ТАСКОМБАНК\" ставлять нижче свої підписи. "]
[null,"Один екземпляр Інформації про умови кредитування та орієнтовну сукупну вартість кредиту отримав(ла)."]
[]
[null,"_______________________",null,"____________________",null,"________________________"]
[null,"дата",null,"підпис",null,"ініціали та прізвище фізичної особи"]
[]
[]
[null,"_______________________",null,"____________________",null,"________________________"]
[null,"дата",null,"підпис",null,"ініціали та прізвище виконавця"]

{"sheet":"Продукты","index":3,"n_rows":23,"n_cols":14,"rows_kept":23,"cut":false,"hidden":true,"merged":[]}
[]
["Назва кредитного продукту","Кредит «Вперед к мечте»","Кредит на покупку недвижимости","Кредит под залог недвижимости","Кредит под депозит","Кредит на купівлю автомобіля, що був у використанні","Овердрафт для держателей зарплатных карт","Кредитная карта VIP","Овердрафт GOLD","Кредит на навчання","Кеш-кредит \"Зручна готівка\" із послугою страхування","Лізинг нерухомості","Кредит \"Легкий\"","Кредит \"Автосалон\""]
["Валюта кредиту","Гривня","Гривня","Гривня","Гривня/Долар США/Євро, відповідає валюті депозиту","Гривня","Гривня","Гривня","Гривня","Гривня","Гривня","Гривня","Гривня","Гривня"]
["Форма кредиту","Строковий кредит.\nСтроковий кредит - сума грошових коштів, що одноразово надається позичальнику на принципах безумовного повернення, строковості, платності, цільової спрямованості та забезпеченості.\nВиконання зобов’язання за кредитним договором, а саме повернення кредиту, сплата процентів та щомісячних комісій (в разі наявності) здійснюється таким чином:\n- проценти сплачуються щомісячно;\n- основний борг повертається щомісячно рівними частинами або ануїтетними платежами.","Строковий кредит.\nСтроковий кредит - сума грошових коштів, що одноразово надається позичальнику на принципах безумовного повернення, строковості, платності, цільової спрямованості та забезпеченості.\nВиконання зобов’язання за кредитним договором, а саме повернення кредиту, сплата процентів та щомісячних комісій (в разі наявності) здійснюється таким чином:\n- проценти сплачуються щомісячно;\n- основний борг повертається щомісячно рівними частинами або ануїтетними платежами.","Строковий кредит/кредитна лінія\nСтроковий кредит - сума грошових коштів, що одноразово надається позичальнику на принципах безумовного повернення, строковості, платності, цільової спрямованості та забезпеченості.\nКредитна лінія – кредитна угода, відповідно до якої протягом передбаченого договором терміну банк виділяє позичальнику кредит у межах узгодженої суми (ліміту кредитування) на умовах, що відрізняються від умов одноразового надання кредиту.","Строковий кредит/кредитна лінія\nСтроковий кредит - сума грошових коштів, що одноразово надається позичальнику на принципах безумовного повернення, строковості, платності, цільової спрямованості та забезпеченості.\nКредитна лінія – кредитна угода, відповідно до якої протягом передбаченого договором терміну банк виділяє позичальнику кредит у межах узгодженої суми (ліміту кредитування) на умовах, що відрізняються від умов одноразового надання кредиту.","Строковий кредит.\nСтроковий кредит - сума грошових коштів, що одноразово надається позичальнику на принципах безумовного повернення, строковості, платності, цільової спрямованості та забезпеченості.\nВиконання зобов’язання за кредитним договором, а саме повернення кредиту, сплата процентів та щомісячних комісій (в разі наявності) здійснюється таким чином:\n- проценти сплачуються щомісячно;\n- основний борг повертається щомісячно рівними частинами або ануїтетними платежами.","Кредит у формі овердрафту","Кредит у формі овердрафту","Кредит у формі овердрафту","Картковий кредит","Кредит готівкою","Лізинг \nЛізинг — підприємницька діяльність, спрямована на інвестування власних чи залучених фінансових коштів, яка полягає в наданні лізингодавцем у виключне користування на визначений строк лізингоодержувачу майна.","Строковий кредит.\nСтроковий кредит - сума грошових коштів, що одноразово надається позичальнику на принципах безумовного повернення, строковості, платності, цільової спрямованості та забезпеченості.\nВиконання зобов’язання за кредитним договором, а саме повернення кредиту, сплата процентів та щомісячних комісій (в разі наявності) здійснюється таким чином:\n- проценти сплачуються щомісячно;\n- основний борг повертається щомісячно рівними частинами або ануїтетними платежами.","Строковий кредит.\nСтроковий кредит - сума грошових коштів, що одноразово надається позичальнику на принципах безумовного повернення, строковості, платності, цільової спрямованості та забезпеченості.\nВиконання зобов’язання за кредитним договором, а саме повернення кредиту, сплата процентів та щомісячних комісій (в разі наявності) здійснюється таким чином:\n- проценти сплачуються щомісячно;\n- основний борг повертається щомісячно рівними частинами або ануїтетними платежами."]
["Мета кредиту","Кредит надається на купівлю нерухомості на вторинному ринку","Кредит надається на купівлю нерухомості","Кредит надається на купівлю нерухомості","Кредит надається безготівково на оплату товарів чи послуг та оплату супутніх послуг, які пов’язані з отриманням, обслуговуванням і погашенням кредиту.","Кредит надається безготівково на оплату товарів чи послуг та оплату супутніх послуг, які пов’язані з отриманням, обслуговуванням і погашенням кредиту.","Кредит надається безготівково на оплату товарів чи послуг та оплату супутніх послуг, які пов’язані з отриманням, обслуговуванням і погашенням кредиту.","Кредит надається безготівково на оплату товарів чи послуг та оплату супутніх послуг, які пов’язані з отриманням, обслуговуванням і погашенням кредиту.","Кредит надається безготівково на оплату товарів чи послуг та оплату супутніх послуг, які пов’язані з отриманням, обслуговуванням і погашенням кредиту.","Кредит надається безготівково на оплату товарів чи послуг та оплату супутніх послуг, які пов’язані з отриманням, обслуговуванням і погашенням кредиту.","Споживчі потреби","Фінансування надається безготівково на оплату товарів чи послуг та оплату супутніх послуг, які пов’язані з отриманням, обслуговуванням і погашенням фінансування.","Кредит надається безготівково на оплату товарів чи послуг та оплату супутніх послуг, які пов’язані з отриманням, обслуговуванням і погашенням кредиту.","Кредит надається безготівково на оплату товарів чи послуг та оплату супутніх послуг, які пов’язані з отриманням, обслуговуванням і погашенням кредиту."]
["Тип процентної ставки","Фіксована","Фіксована","Фіксована","Фіксована","Фіксована","Фіксована","Фіксована","Фіксована","Фіксована","Фіксована","Фіксована","Фіксована","Фіксована"]
["Плата за користування кредитом","Від 14% річних","24% річних - ануїтетна схема погашення; 24% - стандартна схема погашення","24% річних - ануїтетна схема погашення; 24% - стандартна схема погашення","Ставка по депозиту + 2,7%","Від 19,9%","36% річних","0,001% річних","35% річних","36% річних","19,99% річних","24% річних","Від 19,9%","Від 0,001%"]
["Страховий тариф","3% від залишку заборгованості по кредиту щорічно","0,5% - страхування життя, 0,3% - страхування предмету застави","0,5% - страхування життя, 0,3% - страхування предмету застави","-","2,99% - страхування життя, від 5,99% - страхування КАСКО, від 400 грн. - страхування ОСАГО","-","-","-","-","6% на рік, оплачується при оформленні кредиту одразу на весь строк кредиту шляхом перерахування на рахунок страхової компанії з Позичковго рахунку","1% - страхування життя, 0,3% - страхування предмету лізингу","2,99% - страхування життя, від 6,0% - страхування КАСКО, від 400 грн. - страхування ОСАГО","2,99% - страхування життя, від 6,0% - страхування КАСКО, від 400 грн. - страхування ОСАГО"]
["Строки кредитування","від 12 до 60 місяців","До 10 років","До 10 років","Строк депозиту - 32 дні","Від 3 міс. до 84 міс.","12 місяців","12 місяців","12 місяців","5 місяців","12/24/36 місяців","До 10 років","Від 3 міс. до 84 міс.","Від 3 міс. до 84 міс."]
["Суми кредитування","від 100 до 400 тис. грн.","Від 25 тис. до 2 млн. грн.","Від 25 тис. до 2 млн. грн., але не більше 50% вартості житла, яке надається в заставу",null,"Від 50 тис. до 800 тис. грн.","Від 500 грн. до 15 тис. грн. (але не більше 50% заробітної платні)","До 500 тис. грн.","До 50 тис. грн.","До 20 тис. грн.","Від 2 000 до 50 000 грн. з врахуванням суми страхового платежу","Від 25 тис. до 2 млн. грн.","Від 50 тис. до 800 тис. грн.","Від 50 тис. до 800 тис. грн."]
["Форма забезпечення","Застава автомобіля","Придбана нерухомість, порука фізичної (их) особи (осіб) ","Нерухоме майно, порука фізичної (их) особи (осіб)","Майнові права на депозит","Застава автомобіля","Забезпечення відсутнє","Забезпечення відсутнє","Забезпечення відсутнє","Забезпечення відсутнє","Забезпечення відсутнє","Придбана нерухомість","Застава автомобіля","Застава автомобіля"]
["Необхідність здійснення оцінки майна","Необхідність оцінки майна відсутня","Присутня необхідність проведення оцінки майна за рахунок клієнта у випадку передачі в іпотеку домоволодіння та/або земельної ділянки","Присутня необхідність проведення оцінки майна за рахунок клієнта у випадку передачі в іпотеку домоволодіння та/або земельної ділянки","Необхідність оцінки майна відсутня","Присутня необхідність проведення оцінки майна за рахунок клієнта","Необхідність оцінки майна відсутня","Необхідність оцінки майна відсутня","Необхідність оцінки майна відсутня","Необхідність оцінки майна відсутня","Необхідність оцінки майна відсутня","Присутня необхідність проведення оцінки майна за рахунок клієнта","Необхідність оцінки майна відсутня","Необхідність оцінки майна відсутня"]
["Варіанти повернення кредиту:"]
["Форма погашення кредиту","Щомісячно рівними (аннуїтетними) платежами.\nПереваги ануїтетних платежів: повернення кредиту рівними платежами протягом всього строку кредитування. Зручність для позичальників з незмінною щомісячною сумою доходів. Щомісячний платіж меньший в порівнянні з поверненням кредитних коштів рівними частинами.\nНедоліки ануїтетних платежів: сума нарахованих процентів за весь строк користування кредитними коштами буде більше, ніж при поверненні кредиту рівними частинами.","Класична форма погашення/щомісячно рівними (ануїтетними) платежами.\nПереваги класичної форми погашення: сума нарахованих процентів зменьшується значно швидше, ніж при ануїтетному платежі.\nНедоліки класичної форми погашення: на початк користування кредитними коштами сума щомісячного платежу буде більшою, ніж при поверненні ануїтетними платежами.\nПереваги ануїтетних платежів: повернення кредиту рівними платежами протягом всього строку кредитування. Зручність для позичальників з незмінною щомісячною сумою доходів. Щомісячний платіж меньший в порівнянні з поверненням кредитних коштів рівними частинами.\nНедоліки ануїтетних платежів: сума нарахованих процентів за весь строк користування кредитними коштами буде більше, ніж при поверненні кредиту рівними частинами.","Класична форма погашення/щомісячно рівними (ануїтетними) платежами.\nПереваги класичної форми погашення: сума нарахованих процентів зменьшується значно швидше, ніж при ануїтетному платежі.\nНедоліки класичної форми погашення: на початк користування кредитними коштами сума щомісячного платежу буде більшою, ніж при поверненні ануїтетними платежами.\nПереваги ануїтетних платежів: повернення кредиту рівними платежами протягом всього строку кредитування. Зручність для позичальників з незмінною щомісячною сумою доходів. Щомісячний платіж меньший в порівнянні з поверненням кредитних коштів рівними частинами.\nНедоліки ануїтетних платежів: сума нарахованих процентів за весь строк користування кредитними коштами буде більше, ніж при поверненні кредиту рівними частинами.","Класична форма погашення/щомісячно рівними (ануїтетними) платежами.\nПереваги класичної форми погашення: сума нарахованих процентів зменьшується значно швидше, ніж при ануїтетному платежі.\nНедоліки класичної форми погашення: на початк користування кредитними коштами сума щомісячного платежу буде більшою, ніж при поверненні ануїтетними платежами.\nПереваги ануїтетних платежів: повернення кредиту рівними платежами протягом всього строку кредитування. Зручність для позичальників з незмінною щомісячною сумою доходів. Щомісячний платіж меньший в порівнянні з поверненням кредитних коштів рівними частинами.\nНедоліки ануїтетних платежів: сума нарахованих процентів за весь строк користування кредитними коштами буде більше, ніж при поверненні кредиту рівними частинами.","Класична форма погашення/щомісячно рівними (ануїтетними) платежами.\nПереваги класичної форми погашення: сума нарахованих процентів зменьшується значно швидше, ніж при ануїтетному платежі.\nНедоліки класичної форми погашення: на початк користування кредитними коштами сума щомісячного платежу буде більшою, ніж при поверненні ануїтетними платежами.\nПереваги ануїтетних платежів: повернення кредиту рівними платежами протягом всього строку кредитування. Зручність для позичальників з незмінною щомісячною сумою доходів. Щомісячний платіж меньший в порівнянні з поверненням кредитних коштів рівними частинами.\nНедоліки ануїтетних платежів: сума нарахованих процентів за весь строк користування кредитними коштами буде більше, ніж при поверненні кредиту рівними частинами.","Щомісячний обов'язковий платіж","Щомісячний обов'язковий платіж","Щомісячний обов'язковий платіж","Щомісячний обов'язковий платіж","Щомісячний обов'язковий платіж (ануїтетний)","Класична форма погашення/щомісячно рівними (ануїтетними) платежами.\nПереваги класичної форми погашення: сума нарахованих процентів зменьшується значно швидше, ніж при ануїтетному платежі.\nНедоліки класичної форми погашення: на початк користування кредитними коштами сума щомісячного платежу буде більшою, ніж при поверненні ануїтетними платежами.\nПереваги ануїтетних платежів: повернення кредиту рівними платежами протягом всього строку кредитування. Зручність для позичальників з незмінною щомісячною сумою доходів. Щомісячний платіж меньший в порівнянні з поверненням кредитних коштів рівними частинами.\nНедоліки ануїтетних платежів: сума нарахованих процентів за весь строк користування кредитними коштами буде більше, ніж при поверненні кредиту рівними частинами.","Класична форма погашення/щомісячно рівними (ануїтетними) платежами.\nПереваги класичної форми погашення: сума нарахованих процентів зменьшується значно швидше, ніж при ануїтетному платежі.\nНедоліки класичної форми погашення: на початк користування кредитними коштами сума щомісячного платежу буде більшою, ніж при поверненні ануїтетними платежами.\nПереваги ануїтетних платежів: повернення кредиту рівними платежами протягом всього строку кредитування. Зручність для позичальників з незмінною щомісячною сумою доходів. Щомісячний платіж меньший в порівнянні з поверненням кредитних коштів рівними частинами.\nНедоліки ануїтетних платежів: сума нарахованих процентів за весь строк користування кредитними коштами буде більше, ніж при поверненні кредиту рівними частинами.","Класична форма погашення/щомісячно рівними (ануїтетними) платежами.\nПереваги класичної форми погашення: сума нарахованих процентів зменьшується значно швидше, ніж при ануїтетному платежі.\nНедоліки класичної форми погашення: на початк користування кредитними коштами сума щомісячного платежу буде більшою, ніж при поверненні ануїтетними платежами.\nПереваги ануїтетних платежів: повернення кредиту рівними платежами протягом всього строку кредитування. Зручність для позичальників з незмінною щомісячною сумою доходів. Щомісячний платіж меньший в порівнянні з поверненням кредитних коштів рівними частинами.\nНедоліки ануїтетних платежів: сума нарахованих процентів за весь строк користування кредитними коштами буде більше, ніж при поверненні кредиту рівними частинами."]
["Дострокове погашення","Можливе часткове або повне дострокове погашення кредиту на умовах відсутності штрафних санкцій за вчинення таких дій позичальником.","Можливе часткове або повне дострокове погашення кредиту на умовах відсутності штрафних санкцій за вчинення таких дій позичальником","Можливе часткове або повне дострокове погашення кредиту на умовах відсутності штрафних санкцій за вчинення таких дій позичальником","Можливе часткове або повне дострокове погашення кредиту на умовах відсутності штрафних санкцій за вчинення таких дій позичальником","Можливе часткове або повне дострокове погашення кредиту на умовах відсутності штрафних санкцій за вчинення таких дій позичальником","Можливе часткове або повне дострокове погашення кредиту на умовах відсутності штрафних санкцій за вчинення таких дій позичальником","Можливе часткове або повне дострокове погашення кредиту на умовах відсутності штрафних санкцій за вчинення таких дій позичальником","Можливе часткове або повне дострокове погашення кредиту на умовах відсутності штрафних санкцій за вчинення таких дій позичальником","Можливе часткове або повне дострокове погашення кредиту на умовах відсутності штрафних санкцій за вчинення таких дій позичальником","Можливе часткове або повне дострокове погашення кредиту на умовах відсутності штрафних санкцій за вчинення таких дій позичальником","Можливе часткове або повне дострокове погашення кредиту на умовах відсутності штрафних санкцій за вчинення таких дій лізингоодержувача","Можливе часткове або повне дострокове погашення кредиту на умовах відсутності штрафних санкцій за вчинення таких дій позичальником","Можливе часткове або повне дострокове погашення кредиту на умовах відсутності штрафних санкцій за вчинення таких дій позичальником"]
["Остаточне погашення","В кінці строку, вказаного в Кредитному договорі","В кінці строку, вказаного в Кредитному договорі","В кінці строку, вказаного в Кредитному договорі","В кінці строку, вказаного в Кредитному договорі","В кінці строку, вказаного в Кредитному договорі","В кінці строку, вказаного в Кредитному договорі","В кінці строку, вказаного в Кредитному договорі","В кінці строку, вказаного в Кредитному договорі","В кінці строку, вказаного в Кредитному договорі","В кінці строку, вказаного в Кредитному договорі в Графіку платежів","В кінці строку, вказаного в Договорі лізингу","В кінці строку, вказаного в Кредитному договорі","В кінці строку, вказаного в Кредитному договорі"]
["Податковий режим сплати процентів та державні субсидії","По даному кредитному продукту податкові знижки відсутні, державні субсидії не передбачені","По даному кредитному продукту податкові знижки відсутні, державні субсидії не передбачені","По даному кредитному продукту податкові знижки відсутні, державні субсидії не передбачені","По даному кредитному продукту податкові знижки відсутні, державні субсидії не передбачені","По даному кредитному продукту податкові знижки відсутні, державні субсидії не передбачені","По даному кредитному продукту податкові знижки відсутні, державні субсидії не передбачені","По даному кредитному продукту податкові знижки відсутні, державні субсидії не передбачені","По даному кредитному продукту податкові знижки відсутні, державні субсидії не передбачені","По даному кредитному продукту податкові знижки відсутні, державні субсидії не передбачені","По даному кредитному продукту податкові знижки відсутні, державні субсидії не передбачені","По даному кредитному продукту податкові знижки відсутні, державні субсидії не передбачені","По даному кредитному продукту податкові знижки відсутні, державні субсидії не передбачені","По даному кредитному продукту податкові знижки відсутні, державні субсидії не передбачені"]
["Супутні послуги:"]
["Плата за обслуговування кредитної заборгованості","Комісія відсутня","Комісія відсутня","Комісія відсутня","Комісія відсутня","Комісія відсутня","Комісія відсутня","3% від суми заборгованості на кінець місяця","Комісія відсутня","Комісія відсутня","2,95% від суми кредиту","Комісія відсутня","Комісія відсутня","1,4% від суми кредиту"]
["Плата за надання кредиту","3% від суми кредиту","1,5% від суми кредиту","від 1,5% від суми кредиту","0,5% від суми кредиту","від 0 до 2% від суми кредиту","Від 20 грн. до 300 грн. в залежності від суми кредитного ліміту","Комісія відсутня","Комісія відсутня","Комісія відсутня","Комісія відсутня","Не меньше 1,7% від суми фінансування","від 0 до 2% від суми кредиту","від 0 до 2% від суми кредиту"]
["послуги нотаріуса","Так","Так","Так","Ні","Так",null,null,null,null,null,"Так","Так","Так"]
["послуги оцінювача","Ні","Так\nЧП \"Актив Плюс\", ВАТ \"АКО-Експерт\", ПП \"Вітал-Профі\", ВАТ \"Кредитне Брокерське Агенство\", ВАТ \"Вектор оцінки\"","Так\nЧП \"Актив Плюс\", ВАТ \"АКО-Експерт\", ПП \"Вітал-Профі\", ВАТ \"Кредитне Брокерське Агенство\", ВАТ \"Вектор оцінки\"","Ні","Так\nЧП \"Актив Плюс\", ВАТ \"АКО-Експерт\", ПП \"Вітал-Профі\", ВАТ \"Кредитне Брокерське Агенство\", ВАТ \"Вектор оцінки\"","Ні","Ні","Ні","Ні","Ні","Так\nЧП \"Актив Плюс\", ВАТ \"АКО-Експерт\", ПП \"Вітал-Профі\", ВАТ \"Кредитне Брокерське Агенство\", ВАТ \"Вектор оцінки\"","Ні","Ні"]
["штрафи","Штраф – встановлюється в твердо визначеній грошовій сумі або у процентах від суми невиконаного або неналежного виконаного зобов’язання  і стягується одноразово. \nУ випадку надання завідомо недостовірної інформації, яка стосується умов цього Кредитного договору та/або процесу його виконання, Банк має право нарахувати та стягнути, а Позичальник сплачує Банку штраф у розмірі 5,0 % від суми кредиту.\nУ разі ненадання інформації, щодо фінансового та майнового стану, Банк має право нарахувати та стягнути, а Позичальник сплачує Банку штраф у розмірі 5,0 % від суми наданого кредиту. У разі невиконання умов щодо страхування життя та/або об’єкту застави процентна ставка збільшується на 10%."," - 5% від суми кредиту  за надання Позичальником завідомо недостовірної інформації, яка стосується умов  Кредитного договору та/або процесу його виконання.                                                                                                                                                - 5% від суми кредиту  за від суми наданого Кредиту за ненадання Позичальником інформації щодо його фінансового та майнового стану, а також, інформації, що стосується судових справ, стороною яких є Позичальник.                                                                                                           - 5% від суми кредиту за ненадання  Позичальником інформації та документів щодо зміни  його фінансового та майнового стану та не перешкоджати реалізації права Кредитора щодо проведення перевірки документально і в натурі наявності, стану і умов збереження та користування нерухомим майном, яке є забезпеченням по Кредиту.   "," - 5% від суми кредиту  за надання Позичальником завідомо недостовірної інформації, яка стосується умов  Кредитного договору та/або процесу його виконання.                                                                                                                                                - 5% від суми кредиту  за ненадання Позичальником інформації відносно зміни паспортних даних, місця роботи, контактних номерів телефонів, зміни у складі сім\"ї, а  також, інформації, що стосується судових спарав, стороною яких є Позичальник.                                                                                                           - 5% від суми кредиту за ненадання  Позичальником інформації та документів щодо зміни  його фінансового та майнового стану та не перешкоджати реалізації права Кредитора щодо проведення перевірки документально і в натурі наявності, стану і умов збереження та користування нерухомим майном, яке є забезпеченням по Кредиту.   ","Штраф – встановлюється в твердо визначеній грошовій сумі або у процентах від суми невиконаного або неналежного виконаного зобов’язання  і стягується одноразово.\nУ випадку надання завідомо недостовірної інформації, яка стосується умов Кредитного договору та/або процесу його виконання, Банк має право нарахувати та стягнути, а Позичальник сплачує Банку штраф у розмірі 5,0 % від суми кредиту.","Штраф – встановлюється в твердо визначеній грошовій сумі або у процентах від суми невиконаного або неналежного виконаного зобов’язання  і стягується одноразово. \nУ випадку надання завідомо недостовірної інформації, яка стосується умов цього Кредитного договору та/або процесу його виконання, Банк має право нарахувати та стягнути, а Позичальник сплачує Банку штраф у розмірі 5,0 % від суми кредиту.\nУ разі ненадання інформації, щодо фінансового та майнового стану, Банк має право нарахувати та стягнути, а Позичальник сплачує Банку штраф у розмірі 5,0 % від суми наданого кредиту. У разі невиконання умов щодо страхування життя та/або об’єкту застави процентна ставка збільшується на 10%.",null,null,null,null,null,"Штраф – встановлюється в твердо визначеній грошовій сумі або у процентах від суми невиконаного або неналежного виконаного зобов’язання  і стягується одноразово.\nУ випадку надання завідомо недостовірної інформації, яка стосується умов Кредитного договору та/або процесу його виконання, Банк має право нарахувати та стягнути, а Позичальник сплачує Банку штраф у розмірі 5,0 % (п’ять відсотків) від суми кредиту.\nУ разі ненадання інформації,  щодо фінансового та майнового стану, інформацію, що стосується судових справ, зміни своїх персональних даних, Позичальник зобов'язаний сплатити штраф у розмірі 1,0 % (одного відсотка) від суми наданого кредиту, вказаної у п. 2.1. Кредитного договору.\nУ разі невиконання умов щодо страхування життя та/або об’єкту застави процентна ставка збільшується на 10%.","Штраф – встановлюється в твердо визначеній грошовій сумі або у процентах від суми невиконаного або неналежного виконаного зобов’язання  і стягується одноразово. \nУ випадку надання завідомо недостовірної інформації, яка стосується умов цього Кредитного договору та/або процесу його виконання, Банк має право нарахувати та стягнути, а Позичальник сплачує Банку штраф у розмірі 5,0 % від суми кредиту.\nУ разі ненадання інформації, щодо фінансового та майнового стану, Банк має право нарахувати та стягнути, а Позичальник сплачує Банку штраф у розмірі 5,0 % від суми наданого кредиту. У разі невиконання умов щодо страхування життя та/або об’єкту застави процентна ставка збільшується на 10%.","Штраф – встановлюється в твердо визначеній грошовій сумі або у процентах від суми невиконаного або неналежного виконаного зобов’язання  і стягується одноразово. \nУ випадку надання завідомо недостовірної інформації, яка стосується умов цього Кредитного договору та/або процесу його виконання, Банк має право нарахувати та стягнути, а Позичальник сплачує Банку штраф у розмірі 5,0 % від суми кредиту.\nУ разі ненадання інформації, щодо фінансового та майнового стану, Банк має право нарахувати та стягнути, а Позичальник сплачує Банку штраф у розмірі 5,0 % від суми наданого кредиту. У разі невиконання умов щодо страхування життя та/або об’єкту застави процентна ставка збільшується на 10%."]

{"sheet":"Калькулятор Сайт","index":4,"n_rows":38,"n_cols":7,"rows_kept":38,"cut":false,"hidden":true,"merged":[[20,5,20,6]]}
[]
[null,"розраховується на підставі калькулятора"]
[null,"для самостійного заповнення на сайті клієнтом"]
[null,"фіксовані значення відповідно умов програми з наданого калькулятора та паспорту кредиту"]
[]
[null,"Калькулятор \"Кредит на купівлю  нерухомості \" Програма 1"]
[]
[null,null,null,null,"РОЗРАХУНОК КРЕДИТУ"]
["Вартість нерухомості:"]
[null,null,null,null,"Сума кредиту ",null,"(розрахункова)"]
["Строк   кредиту:",null,"(Випадаючий список) (12,24,….120) -до 10 років",null,"щомісячний платіж ***"]
[]
["Аванс % від ватрості нерухомості",null,"(Випадаючий список) (50,60,70)- мінімальний 37,5%",null,"реальна річна  % ставка",null,"стовб. 17 Усього"]
[]
["Схема погашения",null,"Ануїтетна / Класична",null,"Загальні витрати за кредитом, грн.",null,"сума стовб. 6-16"]
[]
["Процентна ставка по договору % річних",null,"Фіксована (24,0% )",null,"Загальна вартість кредиту****, грн. ",null,"стовб. 18 Усього"]
[]
["Одноразова комісія % від суми кредиту ",null,"Фіксована 1,5%"]
[]
["Щомісячна комісія % від початкової суми кредиту",null,"             Відсутня",null,null,"ОФОРМИТИ ЗАЯВКУ"]
[]
["Платежі за послуги третіх осіб",null,"Всього за весь строк кредиту (сума стовб.13, 14 та 15)"]
[]
["Послуги нотаріуса",null,"Одноразово (фіксована сума)* (усього стовб 13)"]
[]
["Послуги оцінювача",null,"Одноразово (фіксована сума)* (усього стовб 14)"]
[]
["Послуги страховика",null,"За весть строк кредиту ** (усього стовб 15)"]
[]
[]
["* До розрахунку прийнята середня  вартість нотаріальної послуги  та послуги оцінювача (виключно в разі оцінки домоволодіння із земельною ділянкою) у м. Києві "]
[]
["** До розрахунку прийняті середні страхові тарифи, що застосовуються при страхуванні нерухомого майна та життя позичальника від НВ в акредитованих компаніях - партнерах банку "]
[]
["*** однакова сума на весь строк кредиту для ануітетної схеми погашення та сума платежу  зі щомісячним зменшенням  для класичної схеми погашення"]
[]
["****до загальної вартості кредиту включені   платежі  за весь строк користування кредитом (у т.ч. тіло кредиту, відсотки, комісії та платежі за послуги третіх осіб )"]

{"sheet":"Лист2","index":5,"n_rows":0,"n_cols":0,"rows_kept":0,"cut":false,"hidden":true,"merged":[]}

{"sheet":"Лист3","index":6,"n_rows":0,"n_cols":0,"rows_kept":0,"cut":false,"hidden":true,"merged":[]}